Cogmind - Beta 11 @@@ ROGUE MODE // 2022.04.09 @ 18:19:31 Player: Alexbot Result: Destroyed by H-71 Marshal with Heavy Mass Driver Performance ------------- Evolutions (7) 3500 Regions Visited (33) 6600 Robots Destroyed (318) 1590 Value Destroyed (15570) 15570 Prototype IDs (92) 1840 Alien Tech Used (12) 2400 Bonus (4451) 4451 TOTAL SCORE: 35951 Bonus ------- High Alert Combat Kills 1238 Follower Combat Kills 488 Met Data Miner 300 Destroyed Z-Imprinter 1000 Triggered Deep Caves Wall 500 Exposed GOLEM Chamber 500 Met Zhirov 300 Met Warlord at Base 500 MAIN.C Attacked Warlord 500 Warlord Defense Kill 710 Friendly Fire -1585 Cogmind --------- Core Integrity 0/1300 Matter 300/300 Energy 395/400 System Corruption 23% Temperature Cool (10) Movement Hovering (44) Location -3/Section 7 Parts ------- > --- POWER (2) -------- Micro Antimatter Reactor > --- PROPULSION (5) --- Combat Linear Gravjet Combat Linear Gravjet Combat Linear Gravjet Combat Linear Gravjet Combat Linear Gravjet > --- UTILITY (12) ----- High-capacity Storage Unit Experimental Optical Array Assembled Combat Suite Experimental Armor Integrity Analyzer Heavy Regenerative Plating Graphene Brace Hacking Suite Ghost Barrier Quantum Router Core Physics Calibrator > --- WEAPON (3) ------- Sigix Broadsword > --- INVENTORY (20) --- Matter Drive Advanced Signal Interpreter Experimental Terrain Scan Processor Advanced Particle Charger Advanced Weapon Cycler Experimental Propulsion Shielding Transdimensional Reconstructor Core Membrane Subatomic Replicator Spacefold Activator Sigix Shearcannon BFG-9k Vortex Edition (40) Peak State ------------ > --- POWER ------------ Micro Antimatter Reactor > --- PROPULSION ------- Combat Linear Gravjet Combat Linear Gravjet Combat Linear Gravjet Combat Linear Gravjet Combat Linear Gravjet > --- UTILITY ---------- Experimental Coolant Injector High-capacity Storage Unit Assembled Combat Suite Experimental Armor Integrity Analyzer Advanced Weapon Cycler Improved Transmission Jammer Experimental Propulsion Shielding Graphene Brace Hacking Suite Ghost Barrier Quantum Router Core Physics Calibrator > --- WEAPON ----------- Gamma Bomb Array Sigix Broadsword > --- INVENTORY -------- Advanced Signal Interpreter Experimental Terrain Scan Processor Advanced Particle Charger Heavy Regenerative Plating Advanced Hardlight Generator Advanced Force Field Dimensional Node Initializer Subatomic Replicator Spacefold Activator Microwarp Drive Sigix Shearcannon BFG-9k Vortex Edition [Rating: 203] Favorites ----------- Power Micro Antimatter Reactor Engine Improved Ion Engine Power Core Light Nuclear Core Reactor Micro Antimatter Reactor Propulsion Combat Linear Gravjet Treads Light Treads Leg Improved Aluminum Leg Wheel Wheel Hover Unit Combat Linear Gravjet Utility Hacking Suite Device Graphene Brace Storage High-capacity Storage Unit Processor Improved Signal Interpreter Hackware Hacking Suite Protection Experimental Propulsion Shielding Artifact Core Physics Calibrator Weapon Compact Ion Cannon Energy Gun Gatling Laser Energy Cannon Compact Ion Cannon Ballistic Gun Heavy Assault Rifle Ballistic Cannon Improved Light Cannon Launcher Mini Smartbomb Launcher Special Weapon Improved Plasma Cutter Impact Weapon Great Maul Slashing Weapon Sigix Broadsword Piercing Weapon Lance Build | -11 -10 -10 -9 -9 -9 -8 -8 -7 -7 -7 -7 -6 -6 -6 -6 -6 -6 -5 -5 -5 -5 -5 -4 -4 -4 -4 -4 -4 -4 -3 -3 -3 -3 ------- Run | Scr Mat Min Mat Min Exi Min Mat Fac Low Low Dat Pro Fac Low Low Zio Dee Pro Fac Upp Upp Zhi Pro Fac Was Fac Upp Upp War Pro Res Qua Sec Slots Evolved 14 | . . . 2 . . . 2 2 . . . . 2 . . . . . 2 . . . . 2 . . . . . . 2 . . Power . | . . . . . . . . . . . . . . . . . . . . . . . . . . . . . . . . . . Propulsion 3 | . . . . . . . . 2 . . . . 1 . . . . . . . . . . . . . . . . . . . . Utility 10 | . . . 2 . . . 2 . . . . . 1 . . . . . 2 . . . . 2 . . . . . . 1 . . Weapon 1 | . . . . . . . . . . . . . . . . . . . . . . . . . . . . . . . 1 . . Parts Attached 489 | . 4 2 15 3 . 10 40 8 8 . 3 7 9 3 3 5 32 . 55 . 1 3 3 36 9 7 . 2 17 6 93 48 57 Power 25 | . 1 . . . . 1 1 . . . . 2 1 . . . 2 . 6 . . 1 . 3 2 . . . . . 3 1 1 Engine 3 | . 1 . . . . 1 . . . . . 1 . . . . . . . . . . . . . . . . . . . . . Core 13 | . . . . . . . 1 . . . . 1 1 . . . . . 6 . . 1 . 2 1 . . . . . . . . Reactor 9 | . . . . . . . . . . . . . . . . . 2 . . . . . . 1 1 . . . . . 3 1 1 Propulsion 63 | . 2 . 2 . . 2 8 4 . . . . 2 1 . . 6 . 15 . . . . 6 2 1 . . 1 . 8 1 2 Treads 9 | . 2 . 2 . . 2 2 . . . . . . . . . . . 1 . . . . . . . . . . . . . . Leg 5 | . . . . . . . 3 . . . . . 1 . . . . . . . . . . . . . . . . . 1 . . Wheel 1 | . . . . . . . 1 . . . . . . . . . . . . . . . . . . . . . . . . . . Hover 48 | . . . . . . . 2 4 . . . . 1 1 . . 6 . 14 . . . . 6 2 1 . . 1 . 7 1 2 Flight . | . . . . . . . . . . . . . . . . . . . . . . . . . . . . . . . . . . Utility 231 | . 1 1 3 . . . 20 4 1 . 1 1 4 2 1 2 19 . 24 . . 2 2 9 3 3 . . 8 . 47 32 41 Device 137 | . 1 . . . . . 4 1 1 . 1 1 . 1 1 2 8 . 14 . . 1 2 3 3 2 . . 5 . 36 22 28 Storage 12 | . . 1 . . . . 1 . . . . . 1 . . . 1 . 5 . . . . . . . . . 1 . 1 . 1 Processor 15 | . . . . . . . . 3 . . . . 1 1 . . 3 . 1 . . . . 1 . . . . . . 2 . 3 Hackware 14 | . . . 2 . . . . . . . . . 1 . . . . . 2 . . . . 1 . . . . . . 6 2 . Protection 50 | . . . 1 . . . 15 . . . . . 1 . . . 7 . 2 . . 1 . 4 . 1 . . 2 . 2 7 7 Artifact 3 | . . . . . . . . . . . . . . . . . . . . . . . . . . . . . . . . 1 2 Weapon 170 | . . 1 10 3 . 7 11 . 7 . 2 4 2 . 2 3 5 . 10 . 1 . 1 18 2 3 . 2 8 6 35 14 13 Energy Gun 10 | . . . 3 1 . . . . 1 . . 2 . . . . . . . . . . . . . . . . . . . 2 1 Energy Cannon 34 | . . . . . . . 5 . 1 . . . 2 . 1 2 3 . 3 . . . . 5 . . . . 2 2 4 . 4 Ballistic Gun 14 | . . 1 5 . . 2 2 . . . . 1 . . . . . . . . . . . . . . . . . . 3 . . Ballistic Cannon 38 | . . . . 1 . 1 . . . . . . . . . . . . 2 . 1 . 1 7 1 1 . 2 1 2 12 3 3 Launcher 48 | . . . 2 1 . 3 4 . 3 . 1 . . . 1 . 2 . 4 . . . . 5 . 1 . . 1 2 12 5 1 Special Weapon 5 | . . . . . . . . . . . . . . . . . . . . . . . . 1 1 . . . 3 . . . . Impact Weapon 10 | . . . . . . . . . 1 . . 1 . . . 1 . . 1 . . . . . . . . . . . 4 2 . Slashing Weapon 9 | . . . . . . 1 . . 1 . 1 . . . . . . . . . . . . . . . . . . . . 2 4 Piercing Weapon 2 | . . . . . . . . . . . . . . . . . . . . . . . . . . 1 . . 1 . . . . Special Melee Weapon . | . . . . . . . . . . . . . . . . . . . . . . . . . . . . . . . . . . Unidentified Prototypes 45 | . . . 1 . . . 2 . . . 1 . 1 . . 1 10 . 4 . . 2 . 1 . . . . 5 1 3 4 9 Corrupted Parts 3 | . . . . . . . 2 . . . . . . . . . 1 . . . . . . . . . . . . . . . . System Corruption 12 | . . . . . . . 11 . . . . . . . . . 1 . . . . . . . . . . . . . . . . Parts Lost 71 | . . 1 3 . . 7 12 . 1 . 2 2 . 2 . . 4 . 9 . . . . 6 . . . . 2 . 10 4 6 Power 6 | . . . . . . 1 1 . . . . . . . . . . . . . . . . 1 . . . . 1 . 1 1 . Propulsion 16 | . . . 1 . . 1 1 . . . 1 . . 1 . . 3 . 7 . . . . 1 . . . . . . . . . Utility 36 | . . . . . . 3 8 . 1 . . 2 . 1 . . 1 . 1 . . . . 3 . . . . 1 . 7 2 6 Weapon 13 | . . 1 2 . . 2 2 . . . 1 . . . . . . . 1 . . . . 1 . . . . . . 2 1 . Highest Loss Streak 5 | . . 1 3 . . 5 5 . 1 . 2 2 . 2 . . 2 . 2 . . . . 3 . . . . 2 . 3 3 2 To Critical Strikes . | . . . . . . . . . . . . . . . . . . . . . . . . . . . . . . . . . . Average Slot Usage (%) 91 | . 87 100 88 100 100 86 91 80 95 92 92 89 79 79 85 85 91 100 92 94 94 93 97 91 93 99 100 100 91 93 91 94 88 Engine 1 | . 14 14 11 11 11 10 3 . . . . . . . . . . . . . . . . . . . . . . . . . . Core 2 | . . . . . . . 5 7 7 7 7 6 6 6 6 6 1 . 3 5 5 5 5 3 2 5 5 5 . . . . . Reactor 1 | . . . . . . . . . . . . . . . . . 4 6 1 . . . . . . . . . . . 3 3 3 Treads 2 | . 13 28 13 22 22 22 8 . . . . . . . . . . . . . . . . . . . . . . . . . . Hover 20 | . . . . . . . . 20 30 30 29 23 21 22 26 26 29 33 22 29 29 29 29 25 23 26 26 26 26 26 22 22 22 Device 12 | . 3 14 11 11 11 7 11 9 9 7 9 13 6 7 5 6 8 13 9 11 11 7 5 12 19 17 21 21 25 31 18 10 16 Storage 7 | . 14 14 11 11 11 11 9 7 7 7 7 7 6 6 6 6 10 6 6 5 5 5 5 5 5 5 5 5 9 10 9 8 4 Processor 8 | . . . . . . . . 6 17 15 15 15 13 8 13 13 10 20 16 17 17 17 17 13 10 10 10 10 7 5 3 8 6 Hackware 10 | . . . 12 11 11 7 . . . . . . 5 6 6 6 2 . 10 11 11 11 11 14 10 10 10 10 7 5 14 22 17 Protection 6 | . . . 8 11 11 7 26 12 7 7 7 5 4 6 6 6 9 6 4 5 5 7 11 6 10 13 10 10 5 5 4 2 3 Energy Cannon 2 | . . . . . . . 3 9 5 . . . 4 6 5 6 6 6 4 . . . . 1 . . . . 1 4 4 . 1 Ballistic Gun 2 | . 14 16 12 11 11 6 3 . . . . 7 6 6 6 . . . . . . . . . . . . . . . . . . Ballistic Cannon 1 | . . . . 5 11 10 . . . . . . . . . . . . 1 . . . 3 . 4 2 5 5 . . . . . Launcher 1 | . . . . . . 4 2 . 2 . 3 . . . . . 5 6 1 . . . . 2 1 . . . 2 4 2 3 . Impact Weapon 1 | . . . . . . . . . 3 7 5 . . . . 5 . . 2 5 5 5 5 1 . . . . . . 1 1 . Naked Turns . | . . . . . . . . . . . . . . . . . . . . . . . . . . . . . . . . . . Heaviest Build 115 | 13 16 21 27 30 28 29 59 55 38 32 35 40 47 50 48 52 55 47 61 51 63 51 61 80 68 74 68 70 78 97 115 94 89 Greatest Support 96 | 20 40 40 40 40 40 40 40 32 40 32 48 24 33 34 34 34 60 68 80 55 80 55 80 80 80 80 74 74 82 76 96 85 85 Greatest Overweight (x) 4 | . . . 1 . . . 4 2 1 . 1 1 1 1 1 1 2 . 3 . 1 . 1 1 . . . . 1 1 1 1 1 Average Overweight (x) . | . . . . . . . . . . . . . . 1 1 1 . . . . . . . . . . . . . . . . . Largest Inventory Capacity 20 | 8 8 10 10 10 10 10 10 10 10 10 10 10 15 15 15 15 15 15 20 20 20 20 20 20 20 20 20 20 20 20 20 20 20 Average Capacity 16 | 8 8 9 10 10 10 10 10 10 10 10 10 10 13 15 15 15 15 15 15 20 20 20 20 20 20 20 20 20 20 20 20 20 20 Most Carried 20 | 6 8 8 10 10 10 10 10 10 10 10 10 10 15 15 15 15 15 15 20 20 20 20 20 20 20 20 20 19 20 20 20 20 20 Average Carried 15 | 6 6 7 9 9 10 9 8 9 9 10 9 9 12 14 15 14 14 15 15 19 19 19 19 19 19 19 19 19 19 19 19 19 19 Final Capacity 20 | 8 8 10 10 10 10 10 10 10 10 10 10 10 15 15 15 15 15 15 20 20 20 20 20 20 20 20 20 20 20 20 20 20 20 Final Carried 20 | 6 8 7 8 10 10 6 10 10 10 10 10 10 15 15 15 15 15 15 19 20 20 20 20 20 20 20 19 19 20 20 20 18 19 Class Distribution -------------------- 27% | Mutant 18% | Wizard-Mutant 17% | Hacker-Mutant 11% | Hacker-Scout 5% | Assassin 4% | Scavenger-Mutant 3% | Infiltrator-Mutant Dominant Class ---------------- Mutant | -10/Materials Mutant | -10/Mines Mutant | -9/Materials Mutant | -9/Mines Mutant | -9/Exiles Mutant | -8/Mines Mutant | -8/Materials Mutant | -7/Factory Mutant | -7/Lower Caves Mutant | -7/Lower Caves Mutant | -7/Data Miner Mutant | -6/Proximity Caves Mutant | -6/Factory Mutant | -6/Lower Caves Mutant | -6/Lower Caves Assassin | -6/Zion Scavenger-Mutant | -6/Deep Caves Scavenger-Scout | -5/Proximity Caves Hacker-Scout | -5/Factory Hacker-Ninja | -5/Upper Caves Hacker-Ninja | -5/Upper Caves Hacker-Scout | -5/Zhirov Hacker-Assassin | -4/Proximity Caves Hacker-Scout | -4/Factory Hacker-Mutant | -4/Waste Hacker-Mutant | -4/Factory Hacker-Mutant | -4/Upper Caves Hacker-Mutant | -4/Upper Caves Hacker-Mutant | -4/Warlord Infiltrator-Mutant | -3/Proximity Caves Wizard-Mutant | -3/Research Wizard-Mutant | -3/Quarantine Wizard-Mutant | -3/Section 7 Resources | -11 -10 -10 -9 -9 -9 -8 -8 -7 -7 -7 -7 -6 -6 -6 -6 -6 -6 -5 -5 -5 -5 -5 -4 -4 -4 -4 -4 -4 -4 -3 -3 -3 -3 ----------- Run | Scr Mat Min Mat Min Exi Min Mat Fac Low Low Dat Pro Fac Low Low Zio Dee Pro Fac Upp Upp Zhi Pro Fac Was Fac Upp Upp War Pro Res Qua Sec Matter Collected 10187 | 200 . 53 205 224 10 343 476 27 296 22 . 130 . 34 95 151 670 . 992 . 20 96 36 824 364 130 8 120 470 164 2260 784 983 Remotely 223 | . . . . . . . 223 . . . . . . . . . . . . . . . . . . . . . . . . . . Salvage Created 15201 | . 84 115 278 224 . 317 1339 27 327 . 27 22 . . 36 . 839 . 1561 . . 96 78 1223 316 662 . 218 176 195 2900 1176 2965 Parts 647 | . 6 6 26 9 . 21 63 4 13 . 3 . . . 1 . 15 . 59 . . . . 47 9 24 . . 4 16 124 53 144 Haulers Intercepted 8 | . . . . . . . 2 . . . . . . . . . . . 3 . . . . 2 . . . . . . 1 . . Recyclers Shooed 10 | . 1 1 . 1 . . . . . . . . . . . . . . 2 . . . . 1 . . . . . . 2 2 . Parts Field Recycled . | . . . . . . . . . . . . . . . . . . . . . . . . . . . . . . . . . . Retrieved Matter . | . . . . . . . . . . . . . . . . . . . . . . . . . . . . . . . . . . Parts Self-Destructed 35 | . . . . . . . . . 3 . . . . 2 . . . . . . . . . . . . . . 14 16 . . . Prevented 8 | . . . . . . . . . . . . . . 4 . . . . . . . . . . . . . . 4 . . . . Kills | -11 -10 -10 -9 -9 -9 -8 -8 -7 -7 -7 -7 -6 -6 -6 -6 -6 -6 -5 -5 -5 -5 -5 -4 -4 -4 -4 -4 -4 -4 -3 -3 -3 -3 ------- Run | Scr Mat Min Mat Min Exi Min Mat Fac Low Low Dat Pro Fac Low Low Zio Dee Pro Fac Upp Upp Zhi Pro Fac Was Fac Upp Upp War Pro Res Qua Sec Combat Hostiles Destroyed 278 | . 2 2 10 3 . 15 19 . 9 . . 1 . . 3 . 40 . 29 . . . . 23 1 11 . . 6 4 44 15 41 Melee 51 | . . . . . . . 4 . . . . . . . . . . . . . . . . . . 3 . . . . . 7 37 Guns 19 | . 2 2 3 1 . 4 2 . . . . 1 . . . . . . . . . . . . . . . . . . 2 . 2 Cannons 48 | . . . . 2 . 1 . . 2 . . . . . . . 1 . 7 . . . . 6 1 2 . . 1 2 18 3 2 AOE 143 | . . . 7 . . 10 12 . 7 . . . . . 3 . 36 . 19 . . . . 15 . 6 . . 5 2 18 3 . Classes Destroyed 28 | . 1 1 4 1 . 3 2 . 1 . . 1 . . . . 5 . . . . . . 1 2 . . . 1 . 2 1 2 Worker 5 | . . 1 . . . . 1 . . . . . . . . . . . 1 . . . . . . . . . . . 2 . . Builder 14 | . . . . . . . 2 . . . . . . . . . . . . . . . . 4 . 1 . . . . 7 . . Tunneler 2 | . . . . . . 1 . . . . . . . . . . . . . . . . . . . 1 . . . . . . . Hauler 8 | . . . . . . . 2 . . . . . . . . . . . 3 . . . . 2 . . . . . . 1 . . Recycler 12 | . . . 1 . . . 2 . . . . . . . . . . . 1 . . . . 1 . 2 . . . . 3 2 . Mechanic 1 | . . . . . . . . . . . . . . . . . . . . . . . . . . . . . . . 1 . . Operator 1 | . . . . . . . . . . . . . . . . . . . . . . . . . . . . . . . 1 . . Watcher 23 | . . . 1 . . . 3 1 . . . . . . . . . . 5 . . . 2 3 . 1 . . . . 3 2 2 Swarmer 61 | . . . 7 . . 8 3 . 3 . . . . . 1 . . . 14 . . . . 4 . 4 . . 1 . 8 3 5 Cutter 2 | . . . . . . . . . . . . . . . . . . . . . . . . 2 . . . . . . . . . Saboteur 1 | . . . . . . . . . . . . . . . . . . . . . . . . . . . . . . . . . 1 Grunt 70 | . 2 2 . 2 . 4 12 . . . . . . . 1 . . . 6 . . . . 7 . 6 . . 1 2 9 3 13 Brawler 3 | . . . . . . 2 . . . . . . . . . . . . . . . . . . . . . . 1 . . . . Duelist 3 | . . . . 1 . . . . . . . . . . . . . . . . . . . 1 . . . . . . 1 . . Protector 1 | . . . . . . . . . . . . . . . . . . . . . . . . . . . . . 1 . . . . Sentry 25 | . . . 3 . . . 4 . . . . . . . 1 . . . 2 . . . . 3 . 1 . . . . 4 . 7 Demolisher 1 | . . . . . . . . . . . . . . . . . . . . . . . . . . . . . 1 . . . . Specialist 3 | . . . . . . . . . . . . . . . . . . . . . . . . . . . . . . . . 3 . Hunter 19 | . . . . . . 1 . . . . . . . . . . . . 2 . . . . 3 . . . . 1 . 10 2 . Programmer 38 | . . . . . . . . . . . . 1 . . . . . . 5 . . . . 3 . . . . . 2 12 4 11 Compactor 1 | . . . . . . . . . . . . . . . . . . . . . . . . . 1 . . . . . . . . S7 Guard 2 | . . . . . . . . . . . . . . . . . . . . . . . . . . . . . . . . . 2 Executioner 2 | . . . . . . . . . . . . . . . . . . . . . . . . . . . . . . . . . 2 Z-Light 3 | . . . . . . . . . . . . . . . . . 3 . . . . . . . . . . . . . . . . Assembler 2 | . . . . . . . . . . . . . . . . . 2 . . . . . . . . . . . . . . . . Assembled 33 | . . . . . . . . . . . . . . . . . 33 . . . . . . . . . . . . . . . . Golem 4 | . . . . . . . . . . . . . . . . . 4 . . . . . . . . . . . . . . . . Thug 4 | . . . . . . . . . 4 . . . . . . . . . . . . . . . . . . . . . . . . Savage 4 | . . . . . . . . . 3 . . . . . . . 1 . . . . . . . . . . . . . . . . Martyr 1 | . . . . . . . . . . . . . . . . . . . . . . . . . 1 . . . . . . . . Fireman 1 | . . . . . . . . . . . . . . . . . 1 . . . . . . . . . . . . . . . . Mutant 1 | . . . . . . . . . 1 . . . . . . . . . . . . . . . . . . . . . . . . Best Kill Streak 35 | . 1 2 7 1 . 5 13 1 5 . 1 1 . . 3 . 35 . 5 . . . 2 8 1 8 . . 3 2 6 3 6 Combat Bots Only 33 | . 1 1 6 1 . 4 4 . 5 . . 1 . . 3 . 33 . 5 . . . . 4 1 6 . . 3 2 5 3 6 Max Kills in Single Turn 11 | . 1 1 2 1 . 3 3 1 3 . 1 1 . . 1 . 11 . 4 . . . 1 4 1 2 . . 2 2 3 2 1 Gunslinging . | . . . . . . . . . . . . . . . . . . . . . . . . . . . . . . . . . . Exploded 10 | . . . 2 . . 3 2 . 3 . . . . . 1 . 10 . 4 . . . . 4 . 2 . . 2 2 3 2 . Melee 1 | . . . . . . . 1 . . . . . . . . . . . . . . . . . . 1 . . . . . 1 1 Uniques/NPCs Destroyed 3 | . . . . 1 . . . . . . 1 . . . . . 1 . . . . . . . . . . . . . . . . YI-UF0 (-9/Mines) Data Miner (-7/Data Miner) Z-Imprinter (-6/Deep Caves) Combat | -11 -10 -10 -9 -9 -9 -8 -8 -7 -7 -7 -7 -6 -6 -6 -6 -6 -6 -5 -5 -5 -5 -5 -4 -4 -4 -4 -4 -4 -4 -3 -3 -3 -3 -------- Run | Scr Mat Min Mat Min Exi Min Mat Fac Low Low Dat Pro Fac Low Low Zio Dee Pro Fac Upp Upp Zhi Pro Fac Was Fac Upp Upp War Pro Res Qua Sec Damage Taken 19516 | . 12 207 527 151 . 1069 1921 78 186 . 236 90 . 265 98 . 1005 33 1376 . 28 . 42 2370 . 385 85 220 226 11 2662 1392 4841 Core 3243 | . . 42 108 11 . 249 214 . 21 . . 16 . . . . 48 . 349 . 28 . 14 759 . 70 . 85 . . 449 111 669 Absorbed by Shields 1596 | . . . . . . . . . . . . . . . . . . . . . . . . . . . . . . 11 517 620 448 Reduced by Siege Mode 63 | . . . . . . . . . . . . . . . . . . . 63 . . . . . . . . . . . . . . Redirected to Shielding 1544 | . . . . . . . . . . . . . . . . . 96 . 145 . . . 14 353 . 116 36 79 27 . 274 109 295 Regen/Repaired (Parts) 4585 | . . . . . . . . . . . . . . . . . . . . . . . . 94 . . . . . . 824 622 3045 Core Remaining (%) 65 | 100 . 83 . . . 8 61 . . . . 94 . . . . . 94 . . . . 60 . . . . . . 20 . . . Volleys Fired 644 | . 4 17 25 28 . 29 32 3 21 . 1 4 2 9 4 . 48 9 100 . 3 . . 64 9 13 . 14 14 5 138 23 25 Largest 2 | . 2 2 2 2 . 2 1 1 1 . 1 2 1 1 1 . 1 1 2 . 1 . . 2 2 1 . 1 1 1 2 1 1 Hottest 184 | . 60 60 56 79 . 67 75 65 70 . 39 104 90 90 70 . 94 90 184 . 61 . . 126 86 80 . 66 94 90 130 90 180 Shots Fired 725 | . 8 30 31 43 . 45 33 3 21 . 1 8 2 9 4 . 49 9 100 . 3 . . 70 10 13 . 15 14 5 149 24 26 Gun 168 | . 8 30 27 17 . 15 4 . . . . 8 . . . . . . . . . . . . . . . . . . 44 6 9 Cannon 402 | . . . . 20 . 19 5 3 15 . . . 2 9 . . 30 9 89 . 3 . . 47 9 5 . 15 3 3 86 13 17 Launcher 154 | . . . 4 6 . 11 24 . 6 . 1 . . . 4 . 19 . 11 . . . . 23 . 8 . . 11 2 19 5 . Special 1 | . . . . . . . . . . . . . . . . . . . . . . . . . 1 . . . . . . . . Kinetic 283 | . 4 19 21 35 . 34 4 . . . . 4 . . . . . . 9 . 3 . . 17 9 5 . 15 . 3 78 13 10 Thermal 169 | . . . 6 2 . . 5 3 15 . . 4 2 9 . . 7 9 62 . . . . 4 1 . . . . . 31 . 9 Explosive 118 | . . . 4 . . 11 3 . 6 . . . . . 4 . 13 . 11 . . . . 23 . 8 . . 11 2 19 3 . Electromagnetic 151 | . 4 11 . 6 . . 21 . . . 1 . . . . . 29 . 18 . . . . 26 . . . . 3 . 21 8 3 Slashing 4 | . . . . . . . . . . . . . . . . . . . . . . . . . . . . . . . . . 4 Robot Hit Streak 17 | . 2 3 5 4 . 12 8 1 4 . . 5 . . 5 . 9 . 17 . . . . 5 3 10 . 12 1 1 16 9 13 Robot Miss Streak 5 | . 1 4 3 4 . 3 2 2 5 . . 3 3 . 4 . 4 . 5 . . . . 3 2 . . . 1 1 3 2 1 Penetration Max 1 | . . . . . . 1 . . . . . . . . . . . . . . . . . . . . . . . . 1 . . Secondary Targets . | . . . . . . . . . . . . . . . . . . . . . . . . . . . . . . . . . . Shots Hit Robots 605 | . 5 15 23 14 . 27 57 1 16 . 1 7 . . 4 . 26 . 71 . . 1 2 41 7 28 . 8 1 2 100 38 110 Core Hits 671 | . 3 9 15 9 . 23 44 1 28 . 1 3 . . 9 . 140 . 69 . . . . 60 2 30 . 3 39 8 101 18 56 Critical Kills 14 | . . . . . . . . . 1 . . . . . . . . . 2 . . . . 4 2 2 . . . . 3 . . Critical Parts Destroyed 23 | . . . . . . . . . . . . . . . . . . . 6 . . . 1 4 1 . . . . . 10 1 . Critical Strikes 69 | . . . . . . . 3 . 1 . . . . . . . . . 8 . . . 1 12 5 3 . . . . 17 5 14 Burn 1 | . . . . . . . . . . . . . . . . . . . . . . . . . . . . . . . . . 1 Meltdown 1 | . . . . . . . . . . . . . . . . . . . . . . . . 1 . . . . . . . . . Destroy 25 | . . . . . . . . . . . . . . . . . . . 5 . . . . 5 5 2 . . . . 8 . . Blast 4 | . . . . . . . . . . . . . . . . . . . . . . . . 2 . . . . . . 2 . . Corrupt 4 | . . . . . . . . . . . . . . . . . . . . . . . . 2 . . . . . . 2 . . Smash 13 | . . . . . . . . . 1 . . . . . . . . . 3 . . . 1 2 . . . . . . 5 1 . Sever 20 | . . . . . . . 3 . . . . . . . . . . . . . . . . . . . . . . . . 4 13 Impale 1 | . . . . . . . . . . . . . . . . . . . . . . . . . . 1 . . . . . . . Melee Attacks 445 | . . . . . . . 42 . 5 1 1 . . . . 26 . . 38 . 1 1 3 27 . 34 . 9 . . 45 48 164 Kinetic 1 | . . . . . . . . . . . . . . . . . . . . . . . . . . . . . . . . 1 . Impact 155 | . . . . . . . . . 4 1 . . . . . 26 . . 38 . 1 1 3 27 . . . . . . 45 9 . Slashing 246 | . . . . . . . 42 . 1 . 1 . . . . . . . . . . . . . . . . . . . . 38 164 Piercing 43 | . . . . . . . . . . . . . . . . . . . . . . . . . . 34 . 9 . . . . . Sneak Attacks 35 | . . . . . . . 3 . 4 . 1 . . . . . . . 8 . . . . 2 . 4 . . . . 8 3 2 Combat Hostiles 1 | . . . . . . . . . . . . . . . . . . . . . . . . . . 1 . . . . . . . Follow-up Attacks . | . . . . . . . . . . . . . . . . . . . . . . . . . . . . . . . . . . Damage Inflicted 46705 | . 51 144 695 341 . 1237 2852 28 1189 . 111 171 . . 272 . 4120 . 4395 . . 133 97 5223 120 2329 . 468 2408 492 7980 3525 8324 Guns 1356 | . 51 144 193 117 . 207 65 . . . . 171 . . . . . . . . . . . . . . . . . . 169 84 155 Cannons 9221 | . . . . 124 . 211 75 28 186 . . . . . . . 730 . 1639 . . . . 1320 120 83 . 12 81 204 3388 558 462 Explosions 20027 | . . . 502 100 . 812 1581 . 738 . 27 . . . 272 . 3390 . 1429 . . . . 3216 . 1307 . . 2327 288 3344 694 . Melee 16001 | . . . . . . . 1131 . 265 . 84 . . . . . . . 1327 . . 133 97 622 . 939 . 456 . . 1079 2189 7679 Ramming 100 | . . . . . . 7 . . . . . . . . . . . . . . . . . 65 . . . . . . . . 28 Kinetic 4889 | . 12 75 135 241 . 418 65 . . . . 88 . . . . . . 106 . . . . 356 120 83 . 12 . 204 2360 614 . Thermal 2703 | . . . 58 . . . 216 28 186 . . 83 . . . . 97 . 960 . . . . 349 . . . . . . 571 . 155 Explosive 17298 | . . . 502 . . 812 200 . 738 . . . . . 272 . 3010 . 1320 . . . . 2900 . 1307 . . 2327 288 3276 346 . Electromagnetic 5308 | . 39 69 . 100 . . 1240 . . . 27 . . . . . 1013 . 682 . . . . 931 . . . . 81 . 694 432 . Impact 3843 | . . . . . . . . . 265 . . . . . . . . . 1327 . . 133 97 622 . . . . . . 1079 320 . Slashing 11169 | . . . . . . . 1131 . . . 84 . . . . . . . . . . . . . . . . . . . . 1813 8141 Piercing 1395 | . . . . . . . . . . . . . . . . . . . . . . . . . . 939 . 456 . . . . . Highest Corruption 23 | . . . 2 2 2 11 12 . . . . 2 . 4 4 4 1 1 7 7 7 7 7 4 4 4 4 4 6 1 1 12 23 Average Corruption 6 | . . . 2 2 2 4 1 . . . . 2 . 4 4 4 1 1 5 7 7 7 7 3 4 4 4 4 2 1 1 8 18 Corruption Purged 9 | . . . . . . . . . . . . . . . . . . . . . . . . . . . . . . . 1 1 7 Corruption Blocked 3 | . . . . . . . . . . . . . . . . . . . . . . . . 3 . . . . . . . . . Effects 298 | . . . 4 6 8 6 5 . . . . 2 . 4 5 2 12 1 32 3 5 3 4 21 5 6 3 5 1 3 10 37 105 Message Errors 73 | . . . 1 1 . . 1 . . . . . . 1 1 2 4 1 4 2 4 2 1 3 4 2 . 2 . 1 2 6 28 Matter Fused 81 | . . . . 2 3 3 2 . . . . 1 . . 2 . 1 . 13 . 1 . 1 8 1 1 1 . 1 . 4 8 28 Heat Flow Errors 34 | . . . 1 . 1 . . . . . . . . 2 1 . 2 . 4 . . . . 2 . 2 . 1 . . 1 6 11 Energy Discharges 40 | . . . 2 . 2 1 1 . . . . 1 . . 1 . 2 . 6 . . . 2 1 . . 1 1 . . . 6 13 Parts Rejected 2 | . . . . . . . . . . . . . . . . . . . . . . . . 1 . . . . . . . . 1 Data Loss (minor) 33 | . . . . 3 1 1 . . . . . . . . . . 1 . 3 . . 1 . 4 . 1 1 . . 2 1 3 11 Data Loss (major) 14 | . . . . . 1 . . . . . . . . 1 . . 1 . 1 . . . . 1 . . . . . . 1 3 5 Misfires 8 | . . . . . . 1 1 . . . . . . . . . 1 . . . . . . . . . . 1 . . . 2 2 Alerts 8 | . . . . . . . . . . . . . . . . . . . . 1 . . . 1 . . . . . . 1 2 3 Misdirections 2 | . . . . . . . . . . . . . . . . . . . . . . . . . . . . . . . . . 2 Weapon Failures 3 | . . . . . . . . . . . . . . . . . . . 1 . . . . . . . . . . . . 1 1 Overload Shots . | . . . . . . . . . . . . . . . . . . . . . . . . . . . . . . . . . . Overflow Damage 3383 | . . . 81 . . 27 111 . 16 . . . . . . . 162 . 442 . . 102 73 517 . 99 . 134 . . 1048 362 209 Projectiles 600 | . . . . . . . . . . . . . . . . . 40 . 46 . . . . 84 . . . . . . 340 88 2 Explosions 555 | . . . 81 . . 27 11 . 16 . . . . . . . 122 . 51 . . . . 112 . 36 . . . . 99 . . Melee 2228 | . . . . . . . 100 . . . . . . . . . . . 345 . . 102 73 321 . 63 . 134 . . 609 274 207 Knockbacks 28 | . . . . 2 . 6 . . . . . . . . . . . . 3 . . . 1 4 1 . . . . . 7 4 . Impact 11 | . . . . . . . . . . . . . . . . . . . 2 . . . 1 3 . . . . . . 3 2 . Kinetic 17 | . . . . 2 . 6 . . . . . . . . . . . . 1 . . . . 1 1 . . . . . 4 2 . Secondary . | . . . . . . . . . . . . . . . . . . . . . . . . . . . . . . . . . . Self-Inflicted Damage 582 | . . . . . . 183 111 . 56 . . . . . 13 . . . . . . . . 84 . . . . . . 19 102 14 Shots 31 | . . . . . . 7 10 . 2 . . . . . 1 . . . . . . . . 2 . . . . . . 1 8 . Rammed 4 | . . . . . . 1 . . . . . . . . . . . . . . . . . 2 . . . . . . . . 1 Targets Rammed 4 | . . . . . . 1 . . . . . . . . . . . . . . . . . 2 . . . . . . . . 1 Kicked . | . . . . . . . . . . . . . . . . . . . . . . . . . . . . . . . . . . Crushed . | . . . . . . . . . . . . . . . . . . . . . . . . . . . . . . . . . . Highest Temperature 472 | . 46 125 144 93 140 111 146 60 215 . . 84 40 332 196 . 404 290 344 . . . . 472 60 309 35 295 60 52 338 260 204 Average Temperature 76 | . 21 55 52 31 77 33 57 33 109 . . 42 24 142 79 . 128 161 118 . . . . 88 11 79 21 61 22 21 44 108 52 Received Heat Transfer 2720 | . 6 120 171 84 . 99 999 . 45 . . . . . 24 . 159 . 117 . . . . 210 . 99 36 9 . . 136 51 355 Effects 17 | . . . . . . . . . . . . . . . . . . . 5 . . . . 4 . 2 . 2 . . . 2 2 Energy Bleed 3 | . . . . . . . . . . . . . . . . . . . . . . . . 1 . . . 2 . . . . . Interference 9 | . . . . . . . . . . . . . . . . . . . 3 . . . . . . 2 . . . . . 2 2 Matter Decay 2 | . . . . . . . . . . . . . . . . . . . 1 . . . . 1 . . . . . . . . . Short Circuit 2 | . . . . . . . . . . . . . . . . . . . . . . . . 2 . . . . . . . . . Damage (minor) 1 | . . . . . . . . . . . . . . . . . . . 1 . . . . . . . . . . . . . . Siege Activations 1 | . . . . . . . . . . . . . . . . . . . 1 . . . . . . . . . . . . . . Total Turns 46 | . . . . . . . . . . . . . . . . . . . 46 . . . . . . . . . . . . . . Longest Duration 46 | . . . . . . . . . . . . . . . . . . . 46 . . . . . . . . . . . . . . Robots Corrupted 17 | . . . . . . . 1 . . . . . . . . . 4 . 4 . . . . 1 . . . . . . 5 2 . Combat Hostiles 16 | . . . . . . . 1 . . . . . . . . . 4 . 3 . . . . 1 . . . . . . 5 2 . Parts Fried 60 | . . . . 1 . . 3 . . . . . . . . . . . 14 . . . 5 10 . . . . . . 18 9 . Impact Corruptions 48 | . . . . . . . . . . . . . . . . . . . 9 . . 1 3 8 . . . . . . 23 3 1 Robots Melted 1 | . . . . . . . . . . . . . . . . . . . . . . . . 1 . . . . . . . . . Combat Hostiles 1 | . . . . . . . . . . . . . . . . . . . . . . . . 1 . . . . . . . . . Parts Melted 10 | . . . 1 . . . . . . . . 2 . . . . 1 . 3 . . . . 1 . . . . . . . . 2 Heat Transferred 3107 | . . . 148 . . . 311 37 259 . . 150 . . . . 120 . 1012 . . . . 320 . . . . . . 300 . 450 Parts Sabotaged . | . . . . . . . . . . . . . . . . . . . . . . . . . . . . . . . . . . Parts Stolen . | . . . . . . . . . . . . . . . . . . . . . . . . . . . . . . . . . . Parts Stripped . | . . . . . . . . . . . . . . . . . . . . . . . . . . . . . . . . . . Power Chain Reactions 6 | . . . . . . . 3 . . . . . . . . . . . 1 . . . . 1 . . . . . . 1 . . Missiles Intercepted . | . . . . . . . . . . . . . . . . . . . . . . . . . . . . . . . . . . Alert | -11 -10 -10 -9 -9 -9 -8 -8 -7 -7 -7 -7 -6 -6 -6 -6 -6 -6 -5 -5 -5 -5 -5 -4 -4 -4 -4 -4 -4 -4 -3 -3 -3 -3 ------- Run | Scr Mat Min Mat Min Exi Min Mat Fac Low Low Dat Pro Fac Low Low Zio Dee Pro Fac Upp Upp Zhi Pro Fac Was Fac Upp Upp War Pro Res Qua Sec Peak Influence 1233 | . 92 110 397 99 . 395 600 200 . . . . 50 . . . . . 738 . . . . 1233 464 736 . . . . 959 591 983 Initial 537 | . . 35 42 79 . . 154 177 . . . . 18 . . . . . 28 . . . . 6 422 324 . . . . 67 537 59 Average 315 | . 54 56 243 63 . 180 400 189 . . . . 30 . . . . . 329 . . . . 431 445 480 . . . . 395 227 309 Maximum Alert Level 4 | . . . 1 . . 1 2 1 . . . . . . . . . . 3 . . . . 4 2 3 . . . . 3 2 3 Low Security (%) 39 | 100 100 100 30 100 . 44 14 48 . . . . 100 . . . . . 13 . . . . 42 . . . . . . 27 55 51 Level 1 29 | . . . 69 . . 55 24 51 . . . . . . . . . . 56 . . . . 19 . 51 . . . . 26 28 18 Level 2 20 | . . . . . . . 60 . . . . . . . . . . . 27 . . . . 5 100 35 . . . . 30 15 14 Level 3 8 | . . . . . . . . . . . . . . . . . . . 2 . . . . 20 . 13 . . . . 15 . 15 Level 4 1 | . . . . . . . . . . . . . . . . . . . . . . . . 12 . . . . . . . . . Level 5 . | . . . . . . . . . . . . . . . . . . . . . . . . . . . . . . . . . . High Security . | . . . . . . . . . . . . . . . . . . . . . . . . . . . . . . . . . . Max Security . | . . . . . . . . . . . . . . . . . . . . . . . . . . . . . . . . . . Squads Dispatched 61 | . . . . . . . 4 . . . . . 2 . . . . . 13 . . . . 14 . 1 . . . . 15 5 7 Investigation 11 | . . . . . . . . . . . . . 1 . . . . . 2 . . . . 7 . . . . . . 1 . . Extermination 17 | . . . . . . . . . . . . . . . . . . . 2 . . . . 2 . . . . . . 5 3 5 Reinforcement 23 | . . . . . . . 3 . . . . . 1 . . . . . 6 . . . . 5 . 1 . . . . 5 2 . Assault 3 | . . . . . . . . . . . . . . . . . . . . . . . . . . . . . . . 1 . 2 Garrison 7 | . . . . . . . 1 . . . . . . . . . . . 3 . . . . . . . . . . . 3 . . Intercept . | . . . . . . . . . . . . . . . . . . . . . . . . . . . . . . . . . . Searches Triggered . | . . . . . . . . . . . . . . . . . . . . . . . . . . . . . . . . . . Construction Impeded 3 | . . . . . . . 1 . . . . . . . . . . . . . . . . 2 . . . . . . . . . Haulers Reinforced 6 | . . . . . . . . . . . . . . . . . . . 4 . . . . 1 . . . . . . 1 . . Active Scanning Responses . | . . . . . . . . . . . . . . . . . . . . . . . . . . . . . . . . . . Cargo Convoy Interrupts 2 | . . . . . . . . . . . . . . . . . . . 1 . . . . 1 . . . . . . . . . Stealth | -11 -10 -10 -9 -9 -9 -8 -8 -7 -7 -7 -7 -6 -6 -6 -6 -6 -6 -5 -5 -5 -5 -5 -4 -4 -4 -4 -4 -4 -4 -3 -3 -3 -3 --------- Run | Scr Mat Min Mat Min Exi Min Mat Fac Low Low Dat Pro Fac Low Low Zio Dee Pro Fac Upp Upp Zhi Pro Fac Was Fac Upp Upp War Pro Res Qua Sec Distress Signals 35 | . 2 1 1 1 . 1 3 . . . . . . . . . . . 2 . . . . 6 . 1 . . . 1 9 3 4 Communications Jammed 39 | . . . . . . . . . . . . . . . . . . . . . . . 6 2 . . . . . . 12 14 5 Distress Signals 39 | . . . . . . . . . . . . . . . . . . . . . . . 6 2 . . . . . . 12 14 5 Times Spotted 541 | . 6 3 12 3 . 15 34 1 13 . 4 1 4 1 3 . 48 5 51 . 1 . 6 71 5 15 9 1 27 4 83 32 83 Peak Tracking Total 37 | . 5 2 7 1 . 4 7 1 6 . 4 1 3 1 3 . 37 5 6 . 1 . 4 10 2 7 8 1 10 2 7 6 10 Tactical Retreats 53 | . . 1 . . . . 2 . . . . . . 1 . . . 1 5 . . . . 9 . 2 3 . 3 . 7 4 15 Traps | -11 -10 -10 -9 -9 -9 -8 -8 -7 -7 -7 -7 -6 -6 -6 -6 -6 -6 -5 -5 -5 -5 -5 -4 -4 -4 -4 -4 -4 -4 -3 -3 -3 -3 ------- Run | Scr Mat Min Mat Min Exi Min Mat Fac Low Low Dat Pro Fac Low Low Zio Dee Pro Fac Upp Upp Zhi Pro Fac Was Fac Upp Upp War Pro Res Qua Sec Traps Triggered 18 | . . . . . . . . 1 . . . . . . . . . . 3 . . . . 6 . . . . 1 . 1 1 5 Indirectly 1 | . . . . . . . . . . . . . . . . . . . . . . . . 1 . . . . . . . . . Trap Hack Attempts . | . . . . . . . . . . . . . . . . . . . . . . . . . . . . . . . . . . Triggered . | . . . . . . . . . . . . . . . . . . . . . . . . . . . . . . . . . . Disarmed 6 | . . . . . . . . . . . . . . . . . . . . . . . . . . . . . . . . 6 . Reprogrammed . | . . . . . . . . . . . . . . . . . . . . . . . . . . . . . . . . . . Reused . | . . . . . . . . . . . . . . . . . . . . . . . . . . . . . . . . . . Traps Extracted . | . . . . . . . . . . . . . . . . . . . . . . . . . . . . . . . . . . Installed . | . . . . . . . . . . . . . . . . . . . . . . . . . . . . . . . . . . Triggered 12 | . . . . . . . . . . . . . . 1 . . . . 1 . 3 . . . . . . . 7 . . . . Most Traps Carried 1 | . . . . 1 1 1 1 . . . . . . . . . . . . . . . . . . . . . . . . . . Machines | -11 -10 -10 -9 -9 -9 -8 -8 -7 -7 -7 -7 -6 -6 -6 -6 -6 -6 -5 -5 -5 -5 -5 -4 -4 -4 -4 -4 -4 -4 -3 -3 -3 -3 ---------- Run | Scr Mat Min Mat Min Exi Min Mat Fac Low Low Dat Pro Fac Low Low Zio Dee Pro Fac Upp Upp Zhi Pro Fac Was Fac Upp Upp War Pro Res Qua Sec Machines Disabled 40 | . . 1 . . . 2 2 . 1 . 1 . . . . . 3 . 1 . . . 1 5 . . . . . . 3 10 10 Max in Single Turn 3 | . . 1 . . . 1 1 . 1 . 1 . . . . . . . 1 . . . 1 3 . . . . . . 1 2 1 Garrison Access 3 | . . . . . . . . . . . . . . . . . . . 1 . . . . 1 . . . . . . 1 . . Machines Sabotaged . | . . . . . . . . . . . . . . . . . . . . . . . . . . . . . . . . . . Garrisons Compromised 1 | . . . . . . . . . . . . . . . . . . . 1 . . . . . . . . . . . . . . Overloaded Fab Kills . | . . . . . . . . . . . . . . . . . . . . . . . . . . . . . . . . . . Hacking | -11 -10 -10 -9 -9 -9 -8 -8 -7 -7 -7 -7 -6 -6 -6 -6 -6 -6 -5 -5 -5 -5 -5 -4 -4 -4 -4 -4 -4 -4 -3 -3 -3 -3 --------- Run | Scr Mat Min Mat Min Exi Min Mat Fac Low Low Dat Pro Fac Low Low Zio Dee Pro Fac Upp Upp Zhi Pro Fac Was Fac Upp Upp War Pro Res Qua Sec Machines Accessed 111 | . 3 . 2 . 4 . 2 . 1 . 4 . 3 . . . . . 14 . 2 4 1 13 . 2 . . 6 . 15 11 24 Terminals 60 | . 3 . 2 . . . 2 . . . . . 1 . . . . . 8 . 1 . 1 7 . 1 . . . . 8 7 19 Fabricators 11 | . . . . . . . . . . . . . 1 . . . . . 3 . . . . 4 . . . . . . 3 . . Repair Stations 7 | . . . . . . . . . . . . . . . . . . . . . . . . 1 . . . . . . 2 2 2 Recycling Units 1 | . . . . . . . . . . . . . . . . . . . . . . . . . . 1 . . . . . . . Scanalyzers 8 | . . . . . . . . . . . . . 1 . . . . . 2 . . . . . . . . . . . 1 2 2 Garrison Access 4 | . . . . . . . . . . . . . . . . . . . 1 . . . . 1 . . . . . . 1 . 1 Total Hacks 491 | . 8 . 3 . 4 . 5 . 1 . 28 . 10 . . . . . 46 . 2 17 1 56 . 4 . . 14 . 101 66 125 Successful 293 | . 1 . 1 . 4 . 1 . 1 . 28 . 4 . . . . . 30 . 2 17 1 32 . 2 . . 14 . 56 37 62 Failed 197 | . 7 . 2 . . . 4 . . . . . 6 . . . . . 16 . . . . 23 . 2 . . . . 45 29 63 Catastrophic 30 | . 4 . 1 . . . 2 . . . . . . . . . . . . . . . . 3 . . . . . . 5 6 9 Database Lockouts 1 | . . . . . . . . . . . . . . . . . . . . . . . . 1 . . . . . . . . . Manual 154 | . 6 . 3 . . . 5 . . . . . . . . . . . 16 . . . . 21 . . . . 1 . 29 15 58 Terminals 292 | . 8 . 3 . . . 5 . . . . . 2 . . . . . 25 . 1 . 1 37 . 2 . . . . 61 52 95 Fabricators 39 | . . . . . . . . . . . . . 5 . . . . . 8 . . . . 14 . . . . . . 12 . . Repair Stations 56 | . . . . . . . . . . . . . . . . . . . . . . . . 4 . . . . . . 21 12 19 Recycling Units 2 | . . . . . . . . . . . . . . . . . . . . . . . . . . 2 . . . . . . . Scanalyzers 28 | . . . . . . . . . . . . . 3 . . . . . 11 . . . . . . . . . . . 5 2 7 Garrison Access 9 | . . . . . . . . . . . . . . . . . . . 2 . . . . 1 . . . . . . 2 . 4 Terminal Hacks 159 | . 1 . 1 . 4 . 1 . 1 . 28 . . . . . . . 8 . 2 17 1 17 . . . . 14 . 23 18 23 Record 30 | . . . . . 4 . . . . . 11 . . . . . . . . . 1 5 . . . . . . 8 . . . 1 Part Schematic 20 | . . . . . . . . . . . 10 . . . . . . . 1 . . 4 . 2 . . . . . . 3 . . Robot Schematic 4 | . . . . . . . . . . . 4 . . . . . . . . . . . . . . . . . . . . . . Robot Analysis 5 | . . . . . . . . . . . . . . . . . . . 1 . . 4 . . . . . . . . . . . Prototype ID Bank 16 | . . . . . . . . . . . 3 . . . . . . . 1 . . 4 . 1 . . . . 5 . 1 . 1 Open Door 9 | . . . . . . . . . 1 . . . . . . . . . . . 1 . 1 . . . . . 1 . . . 5 Level Access Points 1 | . . . . . . . . . . . . . . . . . . . . . . . . . . . . . . . 1 . . Branch Access Points 7 | . 1 . 1 . . . 1 . . . . . . . . . . . 1 . . . . 2 . . . . . . 1 . . Emergency Access Points 6 | . . . . . . . . . . . . . . . . . . . . . . . . 1 . . . . . . 2 . 3 Machine Index 3 | . . . . . . . . . . . . . . . . . . . . . . . . . . . . . . . 1 1 1 Terminal Index 1 | . . . . . . . . . . . . . . . . . . . . . . . . . . . . . . . . . 1 Fabricator Index 4 | . . . . . . . . . . . . . . . . . . . 1 . . . . 1 . . . . . . 1 . 1 Alert Level 6 | . . . . . . . . . . . . . . . . . . . . . . . . 1 . . . . . . 1 3 1 Unreport Threat 13 | . . . . . . . . . . . . . . . . . . . . . . . . 1 . . . . . . 4 5 3 Locate Traps 9 | . . . . . . . . . . . . . . . . . . . 1 . . . . 2 . . . . . . 2 2 2 Disarm Traps 1 | . . . . . . . . . . . . . . . . . . . . . . . . . . . . . . . . 1 . Investigation Status 1 | . . . . . . . . . . . . . . . . . . . . . . . . . . . . . . . . 1 . Recall Investigation 2 | . . . . . . . . . . . . . . . . . . . . . . . . 2 . . . . . . . . . Recall Extermination 1 | . . . . . . . . . . . . . . . . . . . . . . . . . . . . . . . . . 1 Recall Reinforcements 5 | . . . . . . . . . . . . . . . . . . . . . . . . 2 . . . . . . 1 2 . Recall Assault 1 | . . . . . . . . . . . . . . . . . . . . . . . . . . . . . . . 1 . . Hauler Manifests 5 | . . . . . . . . . . . . . . . . . . . 1 . . . . 1 . . . . . . 1 1 1 Registered Prototypes 1 | . . . . . . . . . . . . . . . . . . . . . . . . . . . . . . . 1 . . Zone Layout 8 | . . . . . . . . . . . . . . . . . . . 1 . . . . 1 . . . . . . 2 2 2 Fabricator Hacks 23 | . . . . . . . . . . . . . 2 . . . . . 6 . . . . 10 . . . . . . 5 . . Network Status 5 | . . . . . . . . . . . . . . . . . . . 3 . . . . 2 . . . . . . . . . Load Schematic 9 | . . . . . . . . . . . . . 1 . . . . . 1 . . . . 4 . . . . . . 3 . . Build 9 | . . . . . . . . . . . . . 1 . . . . . 2 . . . . 4 . . . . . . 2 . . Repair Station Hacks 39 | . . . . . . . . . . . . . . . . . . . . . . . . 2 . . . . . . 16 8 13 Scan Component 21 | . . . . . . . . . . . . . . . . . . . . . . . . 1 . . . . . . 8 4 8 Repair 17 | . . . . . . . . . . . . . . . . . . . . . . . . 1 . . . . . . 8 4 4 Refit 1 | . . . . . . . . . . . . . . . . . . . . . . . . . . . . . . . . . 1 Recycling Unit Hacks 2 | . . . . . . . . . . . . . . . . . . . . . . . . . . 2 . . . . . . . Process 1 | . . . . . . . . . . . . . . . . . . . . . . . . . . 1 . . . . . . . Retrieve Matter 1 | . . . . . . . . . . . . . . . . . . . . . . . . . . 1 . . . . . . . Scanalyzer 21 | . . . . . . . . . . . . . 2 . . . . . 10 . . . . . . . . . . . 2 1 6 Insert Component 18 | . . . . . . . . . . . . . 2 . . . . . 7 . . . . . . . . . . . 2 1 6 Analyze 3 | . . . . . . . . . . . . . . . . . . . 3 . . . . . . . . . . . . . . Garrison Access Hacks 4 | . . . . . . . . . . . . . . . . . . . 2 . . . . 1 . . . . . . 1 . . Unlock Access 1 | . . . . . . . . . . . . . . . . . . . 1 . . . . . . . . . . . . . . Seal Access 3 | . . . . . . . . . . . . . . . . . . . 1 . . . . 1 . . . . . . 1 . . Unauthorized Hacks 45 | . . . . . . . . . . . . . . . . . . . 4 . . . . 2 . . . . . . 9 10 20 Terminals 42 | . . . . . . . . . . . . . . . . . . . 4 . . . . 2 . . . . . . 7 9 20 Track 17 | . . . . . . . . . . . . . . . . . . . . . . . . . . . . . . . 3 4 10 Assimilate 7 | . . . . . . . . . . . . . . . . . . . 2 . . . . 1 . . . . . . . 1 3 Botnet 13 | . . . . . . . . . . . . . . . . . . . 2 . . . . 1 . . . . . . 4 3 3 Disrupt 2 | . . . . . . . . . . . . . . . . . . . . . . . . . . . . . . . . . 2 Operators 3 | . . . . . . . . . . . . . . . . . . . . . . . . . . . . . . . . 1 2 Fabricators 2 | . . . . . . . . . . . . . . . . . . . . . . . . . . . . . . . 2 . . Prioritize 1 | . . . . . . . . . . . . . . . . . . . . . . . . . . . . . . . 1 . . Haulers 1 | . . . . . . . . . . . . . . . . . . . . . . . . . . . . . . . 1 . . Repair Stations . | . . . . . . . . . . . . . . . . . . . . . . . . . . . . . . . . . . Recycling Units . | . . . . . . . . . . . . . . . . . . . . . . . . . . . . . . . . . . Scanalyzers 1 | . . . . . . . . . . . . . . . . . . . . . . . . . . . . . . . . 1 . Researchers 1 | . . . . . . . . . . . . . . . . . . . . . . . . . . . . . . . . 1 . Garrison Access . | . . . . . . . . . . . . . . . . . . . . . . . . . . . . . . . . . . Data Cores Recovered . | . . . . . . . . . . . . . . . . . . . . . . . . . . . . . . . . . . Used . | . . . . . . . . . . . . . . . . . . . . . . . . . . . . . . . . . . Hacking Detections 63 | . 3 . 2 . . . 2 . . . . . 3 . . . . . 12 . . . . 12 . 2 . . . . 12 5 10 Full Trace Events 12 | . 1 . . . . . . . . . . . 1 . . . . . 2 . . . . 7 . . . . . . 1 . . Feedback Events 1 | . . . . . . . . . . . . . . . . . . . . . . . . 1 . . . . . . . . . Corruption 1 | . . . . . . . . . . . . . . . . . . . . . . . . 1 . . . . . . . . . Feedback Blocked 1 | . . . . . . . . . . . . . . . . . . . . . . . . 1 . . . . . . . . . Robot Schematics Acquired 7 | . . . . . . . . . . . 4 . . . . 3 . . . . . . . . . . . . . . . . . Robots Built . | . . . . . . . . . . . . . . . . . . . . . . . . . . . . . . . . . . Authchips . | . . . . . . . . . . . . . . . . . . . . . . . . . . . . . . . . . . Time . | . . . . . . . . . . . . . . . . . . . . . . . . . . . . . . . . . . Total Robot Build Rating . | . . . . . . . . . . . . . . . . . . . . . . . . . . . . . . . . . . Part Schematics Acquired 35 | . . . . . . . . . . . 10 . . . . 14 . . 2 . . 4 . 2 . . . . . . 3 . . Parts Built 13 | . . . . . . . . . . . . . 1 . . . . . 3 . . . . 6 . . . . . . 3 . . Authchips 1 | . . . . . . . . . . . . . . . . . . . . . . . . . . . . . . . 1 . . Time 743 | . . . . . . . . . . . . . 128 . . . . . 111 . . . . 442 . . . . . . 62 . . Total Part Build Rating 96 | . . . . . . . . . . . . . 8 . . . . . 17 . . . . 46 . . . . . . 25 . . Parts Repaired 17 | . . . . . . . . . . . . . . . . . . . . . . . . 1 . . . . . . 8 4 4 Time 705 | . . . . . . . . . . . . . . . . . . . . . . . . 26 . . . . . . 291 130 258 Parts Recycled . | . . . . . . . . . . . . . . . . . . . . . . . . . . . . . . . . . . Recycled Matter 225 | . . . . . . . . . . . . . . . . . . . . . . . . . . 225 . . . . . . . Retrieved Matter 225 | . . . . . . . . . . . . . . . . . . . . . . . . . . 225 . . . . . . . Retrieved Components . | . . . . . . . . . . . . . . . . . . . . . . . . . . . . . . . . . . Parts Scanalyzed 1 | . . . . . . . . . . . . . . . . . . . 1 . . . . . . . . . . . . . . Part Schematics Acquired 1 | . . . . . . . . . . . . . . . . . . . 1 . . . . . . . . . . . . . . Parts Damaged 1 | . . . . . . . . . . . . . . . . . . . 1 . . . . . . . . . . . . . . Bothacking | -11 -10 -10 -9 -9 -9 -8 -8 -7 -7 -7 -7 -6 -6 -6 -6 -6 -6 -5 -5 -5 -5 -5 -4 -4 -4 -4 -4 -4 -4 -3 -3 -3 -3 ------------ Run | Scr Mat Min Mat Min Exi Min Mat Fac Low Low Dat Pro Fac Low Low Zio Dee Pro Fac Upp Upp Zhi Pro Fac Was Fac Upp Upp War Pro Res Qua Sec Used RIF Installer . | . . . . . . . . . . . . . . . . . . . . . . . . . . . . . . . . . . Robots Hacked . | . . . . . . . . . . . . . . . . . . . . . . . . . . . . . . . . . . Non-combat . | . . . . . . . . . . . . . . . . . . . . . . . . . . . . . . . . . . Combat . | . . . . . . . . . . . . . . . . . . . . . . . . . . . . . . . . . . Robot Hacks Applied . | . . . . . . . . . . . . . . . . . . . . . . . . . . . . . . . . . . Relay Couplers Released . | . . . . . . . . . . . . . . . . . . . . . . . . . . . . . . . . . . Fabnet Peak Effective % . | . . . . . . . . . . . . . . . . . . . . . . . . . . . . . . . . . . Robots Rewired . | . . . . . . . . . . . . . . . . . . . . . . . . . . . . . . . . . . Allies Hacked 1 | . . . . . . . . . . . . . . . . . . . . . . . . 1 . . . . . . . . . Hacks Repelled 4 | . . . . . . . . . . . . . . . . . . . . . . . . . . . . . . . . 4 . Allies | -11 -10 -10 -9 -9 -9 -8 -8 -7 -7 -7 -7 -6 -6 -6 -6 -6 -6 -5 -5 -5 -5 -5 -4 -4 -4 -4 -4 -4 -4 -3 -3 -3 -3 -------- Run | Scr Mat Min Mat Min Exi Min Mat Fac Low Low Dat Pro Fac Low Low Zio Dee Pro Fac Upp Upp Zhi Pro Fac Was Fac Upp Upp War Pro Res Qua Sec Total Allies 41 | . . . . . . . . . . . . . . . . 9 . . 5 . . . . 5 19 . . . . . . 1 2 Largest Group 19 | . . . . . . . . . . . . . . . . 9 9 . 3 . . . . 3 19 5 . . . . . 1 1 Highest-Rated Group 684 | . . . . . . . . . . . . . . . . 242 242 . 93 . . . . 138 684 125 . . . . . 45 45 Highest-Rated Ally 50 | . . . . . . . . . . . . . . . . 31 31 . 31 . . . . 46 50 25 . . . . . 45 45 Total Orders 10 | . . . . . . . . . . . . . . . . . . . 5 . . . . . . . . . . . . 3 2 STAY 5 | . . . . . . . . . . . . . . . . . . . 2 . . . . . . . . . . . . 2 1 FOLLOW 5 | . . . . . . . . . . . . . . . . . . . 3 . . . . . . . . . . . . 1 1 Ally Attacks 293 | . . . . . . . . . . . . . . . . . 135 . 12 . . . . 27 100 19 . . . . . . . Total Damage 5707 | . . . . . . . . . . . . . . . . . 2066 . 62 . . . . 729 2614 236 . . . . . . . Kills 27 | . . . . . . . . . . . . . . . . . 18 . 1 . . . . 3 5 . . . . . . . . Allies Corrupted . | . . . . . . . . . . . . . . . . . . . . . . . . . . . . . . . . . . Allies Melted . | . . . . . . . . . . . . . . . . . . . . . . . . . . . . . . . . . . Intel | -11 -10 -10 -9 -9 -9 -8 -8 -7 -7 -7 -7 -6 -6 -6 -6 -6 -6 -5 -5 -5 -5 -5 -4 -4 -4 -4 -4 -4 -4 -3 -3 -3 -3 ------- Run | Scr Mat Min Mat Min Exi Min Mat Fac Low Low Dat Pro Fac Low Low Zio Dee Pro Fac Upp Upp Zhi Pro Fac Was Fac Upp Upp War Pro Res Qua Sec Robot Analysis Total 5 | . . . . . . . . . . . . . . . . . . . 1 . . 4 . . . . . . . . . . . Derelict Logs Recovered 13 | . . . . 1 . . . . 1 2 . 3 . 1 . 1 . 1 . 1 1 . . . . . . 1 . . . . . Drone Launches . | . . . . . . . . . . . . . . . . . . . . . . . . . . . . . . . . . . Drone Recoveries . | . . . . . . . . . . . . . . . . . . . . . . . . . . . . . . . . . . Exploration | -11 -10 -10 -9 -9 -9 -8 -8 -7 -7 -7 -7 -6 -6 -6 -6 -6 -6 -5 -5 -5 -5 -5 -4 -4 -4 -4 -4 -4 -4 -3 -3 -3 -3 ------------- Run | Scr Mat Min Mat Min Exi Min Mat Fac Low Low Dat Pro Fac Low Low Zio Dee Pro Fac Upp Upp Zhi Pro Fac Was Fac Upp Upp War Pro Res Qua Sec Turns Passed 21486 | 2 151 227 594 620 850 334 883 95 378 191 67 567 400 380 276 1462 1218 191 2342 97 145 90 142 1716 157 396 111 335 601 258 2593 1390 2227 Spaces Moved 21509 | 2 90 107 236 339 532 154 357 126 601 311 149 621 518 321 244 1276 1503 295 2535 279 378 221 286 1938 221 465 236 306 820 369 1813 1399 2461 Core . | . . . . . . . . . . . . . . . . . . . . . . . . . . . . . . . . . . Treads 1566 | . 37 107 236 339 532 154 146 . . . . . . . . . . . 15 . . . . . . . . . . . . . . Legs 220 | 2 53 . . . . . 154 11 . . . . . . . . . . . . . . . . . . . . . . . . . Wheels 57 | . . . . . . . 57 . . . . . . . . . . . . . . . . . . . . . . . . . . Hover 19664 | . . . . . . . . 115 601 311 149 621 518 321 244 1276 1503 295 2520 279 378 221 286 1938 221 465 236 306 820 369 1813 1399 2459 Flight . | . . . . . . . . . . . . . . . . . . . . . . . . . . . . . . . . . . Fastest Speed 15 | 120 120 160 160 160 160 160 110 38 30 38 22 42 42 100 103 103 40 30 15 34 15 34 15 15 46 46 46 46 38 44 38 44 44 Average Speed 62 | 120 136 160 217 160 160 160 172 57 33 38 35 84 70 103 103 103 51 38 53 34 33 34 44 41 47 46 46 46 44 46 48 47 45 Slowest Speed 400 | 120 160 160 240 160 160 160 400 260 98 38 98 102 102 105 103 103 158 40 240 34 84 34 84 135 50 46 46 46 122 122 148 148 148 Overloaded Moves 1068 | . . . . . . . . . 364 . 38 . . . . . 53 51 151 . 23 . 59 173 . . . . 137 . 19 . . Propulsion Burnouts . | . . . . . . . . . . . . . . . . . . . . . . . . . . . . . . . . . . Robots Hopped 1 | . . . . . . . . . . . . . . . . 1 . . . . . . . . . . . . . . . . . Cave-ins Triggered 2 | . . . . . . 1 . . . . . . . 1 . . . . . . . . . . . . . . . . . . . Teleports 2 | . . . . . . . . . . . . . . . . . . . . . . . . . . . . . . . . 1 1 Spacefolds 1 | . . . . . . . . . . . . . . . . . . . . . . . . . . . . . . . . . 1 Exploration Rate (%) 53 | 2 29 25 18 76 92 45 39 3 70 54 77 71 16 58 40 85 77 55 51 47 59 61 47 46 89 11 56 51 91 65 45 91 79 Regions Visited 33 Branch Regions 23 Pre-discovered Areas 6 | . . . . . . . . . . 1 1 . . . . . . . . . . 3 . . . . . . 1 . . . . Known Exits Taken 22 | . 1 . 1 . . . . 1 1 1 1 1 1 1 1 1 1 1 1 1 1 1 1 . . 1 1 1 . . 1 . . Unknown Exits Taken 9 | 1 . 1 . 1 1 1 1 . . . . . . . . . . . . . . . . . . . . . 1 1 . 1 . Scrap Searched 24 | . . 1 . . . . . . 1 1 . 4 . 2 3 2 . . . . 1 . 3 . . . 2 3 . 1 . . . Spaces Dug 156 | . . . . . . . 2 . . . . . 1 4 . 3 . 2 26 . 1 . . 33 . 5 . 3 . . 38 13 25 Terrain Destroyed 1065 | . . . 41 1 . 92 29 1 57 . . . 2 5 19 3 26 6 85 . 4 . . 334 . 89 . 4 15 11 187 25 29 Melee 100 | . . . . . . . 2 . . . . . . . . 3 . . 14 . 1 . . 16 . 5 . 3 . . 23 12 21 Projectile 83 | . . . . 1 . 1 2 1 5 . . . 2 5 . . 2 6 14 . 3 . . 4 . . . 1 . 1 24 3 8 AOE 882 | . . . 41 . . 91 25 . 52 . . . . . 19 . 24 . 57 . . . . 314 . 84 . . 15 10 140 10 . Terrain Rammed . | . . . . . . . . . . . . . . . . . . . . . . . . . . . . . . . . . . Walls Destroyed . | . . . . . . . . . . . . . . . . . . . . . . . . . . . . . . . . . . Machines Disabled . | . . . . . . . . . . . . . . . . . . . . . . . . . . . . . . . . . . Actions | -11 -10 -10 -9 -9 -9 -8 -8 -7 -7 -7 -7 -6 -6 -6 -6 -6 -6 -5 -5 -5 -5 -5 -4 -4 -4 -4 -4 -4 -4 -3 -3 -3 -3 --------- Run | Scr Mat Min Mat Min Exi Min Mat Fac Low Low Dat Pro Fac Low Low Zio Dee Pro Fac Upp Upp Zhi Pro Fac Was Fac Upp Upp War Pro Res Qua Sec Total 27895 | 1 114 137 288 373 531 194 529 147 749 381 159 651 548 359 264 1373 1908 363 3338 280 393 234 292 2722 262 579 238 471 1043 450 3301 1999 3224 Wait 4236 | . . 11 . . . . 12 . 106 70 1 16 8 26 9 52 272 60 533 1 8 . . 605 11 52 . 141 168 61 1123 448 442 Move 21473 | 1 89 106 235 338 531 153 356 125 600 310 148 620 517 319 243 1273 1502 294 2534 278 377 220 285 1938 220 464 235 305 819 368 1812 1398 2460 Hop 1 | . . . . . . . . . . . . . . . . 1 . . . . . . . . . . . . . . . . . Pick Up 181 | . 7 . 5 3 . . 22 2 2 . 3 1 5 . 2 7 20 . 24 1 1 3 1 15 5 2 1 . 4 2 14 9 20 Fast Attach 205 | . 3 . 8 . . 1 18 4 3 . . 2 7 2 1 2 16 . 21 . . 4 . 14 5 3 . . 8 2 32 17 32 Attach 134 | . . 1 1 . . 3 7 4 2 . 2 1 . 1 . 2 8 . 6 . 1 . 1 14 2 1 . . 7 4 39 9 18 Detach 125 | . 2 . 1 . . . 1 4 3 . . 1 2 1 . 1 6 . 5 . 1 . . 13 2 2 . . 7 4 46 6 17 Swap 159 | . 1 1 6 3 . 6 15 . 3 . 2 4 2 . 2 1 8 . 28 . . . 2 8 2 3 . 2 2 . 22 23 13 Drop 273 | . 8 1 7 1 . 1 24 5 4 . 1 2 5 . 3 8 27 . 36 . 1 6 . 22 6 5 2 . 14 4 30 18 32 Fire 644 | . 4 17 25 28 . 29 32 3 21 . 1 4 2 9 4 . 48 9 100 . 3 . . 64 9 13 . 14 14 5 138 23 25 Melee 445 | . . . . . . . 42 . 5 1 1 . . . . 26 . . 38 . 1 1 3 27 . 34 . 9 . . 45 48 164 Ram 3 | . . . . . . . . . . . . . . . . . . . . . . . . 2 . . . . . . . . 1 Kick . | . . . . . . . . . . . . . . . . . . . . . . . . . . . . . . . . . . Crush 1 | . . . . . . 1 . . . . . . . . . . . . . . . . . . . . . . . . . . . Escape Stasis 14 | . . . . . . . . . . . . . . 1 . . . . 13 . . . . . . . . . . . . . . Rewire 1 | . . . . . . . . . . . . . . . . . 1 . . . . . . . . . . . . . . . . Trap . | . . . . . . . . . . . . . . . . . . . . . . . . . . . . . . . . . . Miscellaneous . | . . . . . . . . . . . . . . . . . . . . . . . . . . . . . . . . . . Route ------- -11/Scrapyard -10/Materials (discovered 2 exits: *Min x2) -10/Mines -9/Materials (discovered 2 exits: *Min x2) -9/Mines (discovered 3 exits: *Mat x2 / *Exi) -9/Exiles -8/Mines -8/Materials -7/Factory -7/Lower Caves -7/Lower Caves (discovered 2 exits: *Fac / *Dat) -7/Data Miner -6/Proximity Caves -6/Factory -6/Lower Caves -6/Lower Caves -6/Zion (discovered 2 exits: *Dee / [*Pro]) -6/Deep Caves -5/Proximity Caves -5/Factory (discovered 2 exits: *Upp x2) -5/Upper Caves -5/Upper Caves -5/Zhirov -4/Proximity Caves -4/Factory (discovered 3 exits: *Res / Upp x2) -4/Waste -4/Factory (discovered 2 exits: *Res / *Upp) -4/Upper Caves -4/Upper Caves -4/Warlord -3/Proximity Caves -3/Research (discovered 6 exits: Res x3 / Arm / *Qua x2) -3/Quarantine (discovered 2 exits: *Res / *Sec) -3/Section 7 (discovered 1 exit: *Res) History --------- Turn | Location | Event 1 | -11/Scrapyard | Discovered new exit (range 1) 3 | -11/Scrapyard | Entered Materials 61 | -10/Materials | Identified exit to Mines 154 | -10/Materials | Entered Mines 169 | -10/Mines | Received a Rocket Launcher from a helpful Derelict 199 | -10/Mines | Assembled infested the area 204 | -10/Mines | Assisted by a Guerilla fighting off Assembled 306 | -10/Mines | Build established: Mutant 365 | -10/Mines | Discovered new exit (range 5) 381 | -10/Mines | Entered Materials 381 | -9/Materials | Evolved 2 slots: Utility x2 532 | -9/Materials | Lost 3 parts (1n2w) 647 | -9/Materials | Discovered new exit (range 16) 889 | -9/Materials | Identified exit to Mines 975 | -9/Materials | Entered Mines 1024 | -9/Mines | Destroyed YI-UF0 1035 | -9/Mines | Found Corrupted Prototype Launcher 1082 | -9/Mines | Met a Derelict bent on vengeance 1190 | -9/Mines | Discovered new exit (range 9) 1257 | -9/Mines | Excavation squad dispatched 1257 | -9/Mines | A large section of the Mines collapsed 1414 | -9/Mines | Found a hidden stash of uninstalled traps 1482 | -9/Mines | Discovered new exit (range 5) 1552 | -9/Mines | Learned Materials stockpile data 1587 | -9/Mines | Deemed a non-threat by the Exiles lab entrance 1589 | -9/Mines | Discovered new exit (range 5) 1595 | -9/Mines | Entered Exiles 1595 | -9/Exiles | Found Exiles lab abandoned 2418 | -9/Exiles | Discovered new exit (range 14) 2445 | -9/Exiles | Entered Mines 2661 | -8/Mines | Core integrity fell below 50% 2670 | -8/Mines | Crushed by falling debris 2670 | -8/Mines | Core integrity fell below 20% 2670 | -8/Mines | System corruption reached 10% 2701 | -8/Mines | Lost 5 parts (1p1n3u) 2751 | -8/Mines | Discovered new exit (range 8) 2779 | -8/Mines | Entered Materials 2779 | -8/Materials | Evolved 2 slots: Utility x2 3061 | -8/Materials | Lost 4 parts (1n3u) 3080 | -8/Materials | Garrison activated, responded to threat 3124 | -8/Materials | Lost 5 parts (1p3u1w) 3631 | -8/Materials | Identified YI-UF0's Doublenader 3645 | -8/Materials | Discovered new exit (range 8) 3661 | -8/Materials | System corruption reached 10% 3662 | -8/Materials | Entered Factory 3662 | -7/Factory | Evolved 2 slots: Propulsion x2 3729 | -7/Factory | Discovered new exit (range 7) 3732 | -7/Factory | Identified exit to Lower Caves 3757 | -7/Factory | Entered Lower Caves 3859 | -7/Lower Caves | Found Alien Artifact 3878 | -7/Lower Caves | Attacked by a faux Warlord 4132 | -7/Lower Caves | Discovered new exit (range 10) 4135 | -7/Lower Caves | Identified exit to Lower Caves 4135 | -7/Lower Caves | Entered another Lower Caves area 4143 | -7/Lower Caves | Discovered new exit (range 7) 4293 | -7/Lower Caves | Learned location of Zion (-6) 4309 | -7/Lower Caves | Discovered new exit (range 10) 4326 | -7/Lower Caves | Identified exit to Data Miner 4326 | -7/Lower Caves | Entered Data Miner 4326 | -7/Data Miner | Discovered new exit (range 6) 4334 | -7/Data Miner | Met Data Miner 4346 | -7/Data Miner | Learned location of Section 7 (-3) 4346 | -7/Data Miner | Acquired the access code to Warlord's prototype stash 4353 | -7/Data Miner | Received God Mode back door access code from Data Miner 4363 | -7/Data Miner | Identified Dimensional Node Initializer 4363 | -7/Data Miner | Initialized slip node 4375 | -7/Data Miner | Destroyed Data Miner 4378 | -7/Data Miner | Found Prototype Hackware 4380 | -7/Data Miner | Found Prototype Hackware 4382 | -7/Data Miner | Found Prototype Hackware 4384 | -7/Data Miner | Data Conduit disabled 4393 | -7/Data Miner | Identified exit to Proximity Caves 4393 | -7/Data Miner | Entered Proximity Caves 4424 | -6/Proximity Caves | Learned 8 Factory zone layouts 4941 | -6/Proximity Caves | Learned 8 Factory zone layouts 4954 | -6/Proximity Caves | Discovered new exit (range 5) 4955 | -6/Proximity Caves | Identified exit to Factory 4960 | -6/Proximity Caves | Entered Factory 4960 | -6/Factory | Evolved 2 slots: Propulsion x1, Utility x1 4961 | -6/Factory | Identified exit to Lower Caves 5021 | -6/Factory | Identified System Mapper 5021 | -6/Factory | Identified Ghost Barrier 5090 | -6/Factory | Found Launcher Loader 5312 | -6/Factory | Fabricated Com. HERF Cannon? 5360 | -6/Factory | Entered Lower Caves 5467 | -6/Lower Caves | Crushed by falling debris 5486 | -6/Lower Caves | Spotted B-75 Beast 5599 | -6/Lower Caves | Identified exit to Lower Caves 5740 | -6/Lower Caves | Entered another Lower Caves area 5883 | -6/Lower Caves | Attracted the attention of an 0b10 checkpoint 5969 | -6/Lower Caves | Encountered a Warlord checkpoint 6001 | -6/Lower Caves | Discovered new exit (range 6) 6005 | -6/Lower Caves | Identified exit to Zion 6016 | -6/Lower Caves | Entered Zion 6128 | -6/Zion | Found Prototype Device 6128 | -6/Zion | Identified Mobile Refinery Mk. CCLXVII 6178 | -6/Zion | System corruption cleaned by Quarantine Array 6221 | -6/Zion | Discovered new exit (range 13) 6313 | -6/Zion | Learned Factory emergency access door positions 6324 | -6/Zion | Build established: Assassin 6522 | -6/Zion | Gained Derelict followers 6584 | -6/Zion | Gained Derelict followers 6849 | -6/Zion | Gained Derelict followers 7190 | -6/Zion | Discovered new exit (range 4) 7262 | -6/Zion | Found Prototype Processor 7264 | -6/Zion | Found Prototype Processor 7266 | -6/Zion | Found Prototype Processor 7270 | -6/Zion | Found Prototype Processor 7272 | -6/Zion | Found Prototype Processor 7419 | -6/Zion | Saw the warning signs outside the Deep Caves entrance 7425 | -6/Zion | Identified exit to Deep Caves 7478 | -6/Zion | Entered Deep Caves 7478 | -6/Deep Caves | Accompanied by 9 allies 7544 | -6/Deep Caves | Build established: Mutant 7654 | -6/Deep Caves | Attacked by Z-Imprinter 7679 | -6/Deep Caves | Allies destroyed Z-Imprinter 7760 | -6/Deep Caves | Found Prototype Protection 7760 | -6/Deep Caves | Identified Zio. Weapon Casing 7843 | -6/Deep Caves | Z-Facility disabled 7906 | -6/Deep Caves | Found Prototype Protection 7906 | -6/Deep Caves | Identified Zio. Heavy Carapace 7926 | -6/Deep Caves | Found Zio. Heavy Carapace 7928 | -6/Deep Caves | Found Zio. Weapon Casing 7943 | -6/Deep Caves | Found Zio. Weapon Casing 7996 | -6/Deep Caves | Build established: Scavenger-Mutant 8005 | -6/Deep Caves | Discovered new exit (range 7) 8057 | -6/Deep Caves | Spotted as-28506 8067 | -6/Deep Caves | Destroyed as-28506 8109 | -6/Deep Caves | Triggered Deep Caves wall 8109 | -6/Deep Caves | Spotted AS-45452 8114 | -6/Deep Caves | Exposed GOLEM chamber 8123 | -6/Deep Caves | Destroyed AS-45452 8123 | -6/Deep Caves | Destroyed AS-70355 8136 | -6/Deep Caves | Found GOLEM Unit 8144 | -6/Deep Caves | Destroyed 33 combat bots 8203 | -6/Deep Caves | Found Zio. Weapon Casing 8297 | -6/Deep Caves | Spotted as-21785 8313 | -6/Deep Caves | Destroyed as-21785 8353 | -6/Deep Caves | Found Prototype Energy Cannon 8389 | -6/Deep Caves | Found Surveybot 24 Scanner 8391 | -6/Deep Caves | Found Surveybot 24 Chip 8514 | -6/Deep Caves | Identified Spectral Analyzer (x2) 8600 | -6/Deep Caves | Identified exit to Proximity Caves 8696 | -6/Deep Caves | Entered Proximity Caves 8801 | -5/Proximity Caves | Build established: Scavenger-Scout 8830 | -5/Proximity Caves | Learned Factory emergency access door positions 8879 | -5/Proximity Caves | Discovered new exit (range 21) 8887 | -5/Proximity Caves | Identified exit to Factory 8887 | -5/Proximity Caves | Entered Factory 8887 | -5/Factory | Evolved 2 slots: Utility x2 8888 | -5/Factory | Identified exit to Upper Caves 8901 | -5/Factory | Identified Exp. Armor Integrity Analyzer 8901 | -5/Factory | Identified Exp. Terrain Scan Processor 8901 | -5/Factory | Identified Quantum Router 8901 | -5/Factory | Identified YOLO Cannon 9009 | -5/Factory | Found Prototype Processor 9009 | -5/Factory | Identified Exp. Targeting Computer 9179 | -5/Factory | Fabricated Gyrokinetic Inverter? 9220 | -5/Factory | Spotted B-75 Beast 9224 | -5/Factory | Garrison activated, responded to threat 9530 | -5/Factory | Build established: Hacker-Mutant 9541 | -5/Factory | Identified exit to Garrison 9800 | -5/Factory | Fabricated Exp. Utility Shielding? 10133 | -5/Factory | Cargo convoy interrupted 10647 | -5/Factory | Build established: Hacker-Scout 11049 | -5/Factory | Allied Derelicts emerged from ambush trap array 11229 | -5/Factory | Entered Upper Caves 11233 | -5/Upper Caves | Learned Factory non-interactive machine intel 11245 | -5/Upper Caves | Spotted B-75 Beast 11311 | -5/Upper Caves | Discovered new exit (range 5) 11312 | -5/Upper Caves | Identified exit to Upper Caves 11326 | -5/Upper Caves | Entered another Upper Caves area 11385 | -5/Upper Caves | Spotted B-75 Beast 11390 | -5/Upper Caves | Build established: Hacker-Ninja 11461 | -5/Upper Caves | Discovered new exit (range 16) 11469 | -5/Upper Caves | Identified exit to Zhirov 11471 | -5/Upper Caves | Entered Zhirov 11471 | -5/Zhirov | Discovered new exit (range 3) 11478 | -5/Zhirov | Met Zhirov 11485 | -5/Zhirov | Learned location of Quarantine (-3) 11485 | -5/Zhirov | Learned location of Testing (-2) 11485 | -5/Zhirov | Learned location of Command (-1) 11488 | -5/Zhirov | Zhirov requested help retrieving the SGEMP Prototype 11496 | -5/Zhirov | Found Alien Artifact 11496 | -5/Zhirov | Identified Integrated Reactor 11496 | -5/Zhirov | Installed Integrated Reactor, increased core energy generation (+10) 11542 | -5/Zhirov | Found Alien Artifact 11561 | -5/Zhirov | Identified exit to Proximity Caves 11561 | -5/Zhirov | Entered Proximity Caves 11681 | -4/Proximity Caves | Snuck into a huge 0b10 base via the rear entrance 11699 | -4/Proximity Caves | Discovered new exit (range 3) 11699 | -4/Proximity Caves | Identified exit to Factory 11703 | -4/Proximity Caves | Entered Factory 11703 | -4/Factory | Evolved 2 slots: Utility x2 11705 | -4/Factory | Loaded intel: 180 non-interactive machine locations 11840 | -4/Factory | Repaired Exp. Utility Shielding 11975 | -4/Factory | Build established: Hacker-Scout 11987 | -4/Factory | Spotted B-86 Titan 12092 | -4/Factory | Identified exit to Upper Caves 12143 | -4/Factory | Discovered new exit (range 24) 12315 | -4/Factory | Fabricated Cmb. Linear Gravjet? 12321 | -4/Factory | Fabricated Cmb. Linear Gravjet? 12354 | -4/Factory | Allied Derelicts emerged from ambush trap array 12368 | -4/Factory | Cargo convoy interrupted 12676 | -4/Factory | Central database locked down 12820 | -4/Factory | Found Prototype Launcher 12820 | -4/Factory | Identified Mni. Smartbomb Launcher 13043 | -4/Factory | Core integrity fell below 50% 13097 | -4/Factory | Lost 3 parts (1p2u) 13242 | -4/Factory | Fabricated Exp. Utility Shielding? 13267 | -4/Factory | Fabricated Exp. Propulsion Shielding (x1) 13350 | -4/Factory | Build established: Hacker-Mutant 13419 | -4/Factory | Manually triggered Chute Trap 13419 | -4/Factory | Sucked down chute 13419 | -4/Factory | Entered Waste 13419 | -4/Waste | Spotted C-40 Crusher 13472 | -4/Waste | Spotted C-40 Crusher 13478 | -4/Waste | Warlord forces began an assault 13486 | -4/Waste | Spotted C-40 Crusher 13489 | -4/Waste | Allies destroyed C-40 Crusher 13492 | -4/Waste | Spotted C-40 Crusher 13494 | -4/Waste | Spotted C-40 Crusher 13494 | -4/Waste | Allies destroyed C-40 Crusher 13498 | -4/Waste | Allies destroyed C-40 Crusher 13506 | -4/Waste | Allies destroyed C-40 Crusher 13506 | -4/Waste | Allies destroyed C-40 Crusher 13547 | -4/Waste | Spotted C-40 Crusher 13551 | -4/Waste | Destroyed C-40 Crusher 13571 | -4/Waste | Discovered new exit (range 12) 13576 | -4/Waste | Identified exit to Factory 13576 | -4/Waste | Entered Factory 13576 | -4/Factory | Accompanied by 5 allies 13758 | -4/Factory | Spotted B-86 Titan 13781 | -4/Factory | Discovered new exit (range 23) 13844 | -4/Factory | Discovered exit to Upper Caves (range 22) 13972 | -4/Factory | Entered Upper Caves 14074 | -4/Upper Caves | Discovered new exit (range 6) 14081 | -4/Upper Caves | Identified exit to Upper Caves 14083 | -4/Upper Caves | Entered another Upper Caves area 14115 | -4/Upper Caves | Learned location of 1 exit from Research 14365 | -4/Upper Caves | Spotted B-86 Titan 14416 | -4/Upper Caves | Discovered new exit (range 7) 14418 | -4/Upper Caves | Identified exit to Warlord 14418 | -4/Upper Caves | Entered Warlord 14438 | -4/Warlord | System corruption cleaned by Quarantine Array 14644 | -4/Warlord | Learned Research security intel 14644 | -4/Warlord | Learned Factory terminal intel 14655 | -4/Warlord | Found Prototype Special Weapon 14655 | -4/Warlord | Identified RU-N14's Throwing Claymores v3 14658 | -4/Warlord | Found RU-N14's Throwing Claymores v3 14734 | -4/Warlord | Visited the Vortex Lab 14735 | -4/Warlord | Warlord's base attacked by MAIN.C 14738 | -4/Warlord | Found Prototype Energy Cannon 14738 | -4/Warlord | Identified Vortex Cannon 14742 | -4/Warlord | Met EX-DEC 14751 | -4/Warlord | Found Prototype Energy Cannon 14835 | -4/Warlord | Met Warlord 14840 | -4/Warlord | Opened Warlord's prototype stash 14845 | -4/Warlord | Found Prototype Device 14845 | -4/Warlord | Identified Exp. Phase Shifter 14893 | -4/Warlord | Spotted B-86 Titan 14903 | -4/Warlord | Found Corrupted Prototype Ballistic Cannon 14906 | -4/Warlord | Found Prototype Ballistic Cannon 14999 | -4/Warlord | Warlord forces counterattacked 15017 | -4/Warlord | Discovered new exit (range 8) 15019 | -4/Warlord | Entered Proximity Caves 15040 | -3/Proximity Caves | Build established: Infiltrator-Mutant 15173 | -3/Proximity Caves | Identified Hvy. Autocannon 15272 | -3/Proximity Caves | Discovered new exit (range 12) 15277 | -3/Proximity Caves | Entered Research 15277 | -3/Research | Evolved 2 slots: Utility x1, Weapon x1 15278 | -3/Research | Identified exit to Armory 15279 | -3/Research | Identified exit to Research 15840 | -3/Research | Repaired Exp. Propulsion Shielding? 15877 | -3/Research | Repaired Mni. Smartbomb Launcher? 16086 | -3/Research | Fabricated Cmb. Linear Gravjet (x2) 16127 | -3/Research | Garrison activated, responded to threat 16128 | -3/Research | Build established: Wizard-Mutant 16230 | -3/Research | Found Prototype Device 16230 | -3/Research | Identified Exp. Thermal Shield 16307 | -3/Research | Repaired Exp. Propulsion Shielding? 16385 | -3/Research | Repaired Cmb. Linear Gravjet 16433 | -3/Research | Repaired Broken Hyp. Railgun 16473 | -3/Research | Repaired Cmb. Linear Gravjet 16526 | -3/Research | Repaired Mni. Smartbomb Launcher 16559 | -3/Research | Repaired Graphene Brace 16777 | -3/Research | First assault squad dispatched 16834 | -3/Research | Identified exit to Quarantine 16975 | -3/Research | Lost 3 parts (1p2u) 17164 | -3/Research | Spotted B-86 Titan 17213 | -3/Research | Identified Transdimensional Reconstructor 17213 | -3/Research | Identified BFG-9k Vortex Edition 17476 | -3/Research | Spotted B-86 Titan 17602 | -3/Research | Fabricated Lrn. Sensor Array? 17607 | -3/Research | Build established: Hacker-Mutant 17717 | -3/Research | Found Gamma Bomb Array 17870 | -3/Research | Entered Quarantine 17876 | -3/Quarantine | Found Alien Artifact 17876 | -3/Quarantine | Identified Phase Redirector 17918 | -3/Quarantine | Build established: Wizard-Mutant 17925 | -3/Quarantine | Repaired Exp. Propulsion Shielding 17948 | -3/Quarantine | Repaired Adv. ECM Suite 18025 | -3/Quarantine | Repaired Mic. Antimatter Reactor 18059 | -3/Quarantine | Repaired Gamma Bomb Array 18159 | -3/Quarantine | Found Dimensional Node Initializer 18400 | -3/Quarantine | P-80 Master assimilated allied Director 8a 18519 | -3/Quarantine | Found Alien Slashing Weapon 18519 | -3/Quarantine | Identified Sigix Broadsword 18525 | -3/Quarantine | Warped through subspace 18678 | -3/Quarantine | System corruption reached 10% 18765 | -3/Quarantine | Found Alien Artifact 18786 | -3/Quarantine | Discovered exit to Research (range 10) 18792 | -3/Quarantine | Identified Subatomic Replicator 19127 | -3/Quarantine | Cryocooling Duct disabled 19142 | -3/Quarantine | Ambient heat levels rising (+20) 19142 | -3/Quarantine | Non-combat units ordered to evacuate 19149 | -3/Quarantine | Found Alien Impact Weapon 19176 | -3/Quarantine | Identified Core Stripper 19208 | -3/Quarantine | Spotted Fortress 19247 | -3/Quarantine | Lost 3 parts (1p2u) 19250 | -3/Quarantine | Discovered new exit (range 6) 19260 | -3/Quarantine | Entered Section 7 19328 | -3/Section 7 | Found Alien Artifact 19348 | -3/Section 7 | Spotted S7 Guard 19360 | -3/Section 7 | Found Alien Artifact 19436 | -3/Section 7 | Repaired Exp. Propulsion Shielding 19471 | -3/Section 7 | Repaired Broken Adv. Sensor Array 19733 | -3/Section 7 | Spotted S7 Guard 19904 | -3/Section 7 | Found Gamma Bomb Array 19929 | -3/Section 7 | Core integrity fell below 50% 20034 | -3/Section 7 | Spotted S7 Guard 20172 | -3/Section 7 | Destroyed S7 Guard 20204 | -3/Section 7 | Identified Core Reset Matrix 20204 | -3/Section 7 | Identified Core Physics Calibrator 20225 | -3/Section 7 | Found Alien Artifact 20253 | -3/Section 7 | Found Alien Artifact 20277 | -3/Section 7 | Identified Integrated Thermoelectric Network 20277 | -3/Section 7 | Identified Spacefold Activator 20277 | -3/Section 7 | Installed Integrated Thermoelectric Network, gained heat-energy exchange potential 20290 | -3/Section 7 | Repaired Exp. Propulsion Shielding? 20344 | -3/Section 7 | Found Integrated Reactor 20344 | -3/Section 7 | Installed Integrated Reactor, increased core energy generation (+10) 20364 | -3/Section 7 | Found Prototype Protection 20401 | -3/Section 7 | Repaired Broken Cmb. Linear Gravjet 20509 | -3/Section 7 | Identified Hvy. Regenerative Plating 20559 | -3/Section 7 | Destroyed S7 Guard 20580 | -3/Section 7 | Found Hvy. Regenerative Plating 20594 | -3/Section 7 | Found Alien Energy Cannon 20594 | -3/Section 7 | Identified Sigix Shearcannon 20725 | -3/Section 7 | Found Alien Artifact 20941 | -3/Section 7 | Build established: Hacker-Mutant 20974 | -3/Section 7 | Spotted S7 Guard 21055 | -3/Section 7 | First assault squad dispatched 21091 | -3/Section 7 | Initialized slip node 21215 | -3/Section 7 | Spotted Executioner 21217 | -3/Section 7 | Spotted Executioner 21235 | -3/Section 7 | Core integrity fell below 20% 21244 | -3/Section 7 | Destroyed Executioner 21250 | -3/Section 7 | Destroyed Executioner 21254 | -3/Section 7 | Found Prototype Device 21254 | -3/Section 7 | Identified Adv. Kinecellerator 21257 | -3/Section 7 | Found Prototype Processor 21257 | -3/Section 7 | Identified Exp. Core Analyzer 21290 | -3/Section 7 | Found Transdimensional Reconstructor 21292 | -3/Section 7 | Found Transdimensional Reconstructor 21304 | -3/Section 7 | Found Alien Reactor 21330 | -3/Section 7 | Spotted B-99 Colossus 21348 | -3/Section 7 | Found Alien Artifact 21348 | -3/Section 7 | Identified Core Expander 21348 | -3/Section 7 | Installed Core Expander, added new Power slot 21364 | -3/Section 7 | Found Alien Artifact 21364 | -3/Section 7 | Identified LRC Energy Well 21364 | -3/Section 7 | Installed LRC Energy Well, increased energy storage capacity (+250) 21461 | -3/Section 7 | Found Alien Artifact 21462 | -3/Section 7 | Warped through subspace to slip node 21484 | -3/Section 7 | Identified Core Membrane 21484 | -3/Section 7 | Identified Matter Drive 21487 | -3/Section 7 | Discovered exit to Research (range 18) 21487 | -3/Section 7 | Destroyed by H-71 Marshal with Heavy Mass Driver Last Messages --------------- 21424_ K-01 Serf cleans the L2 Monitoring Station. 21434_ LRGM9CTQAQHWQX<4:NEDLNJU 21449_ LPO3OXRZVFMELQNO%AX5N7WYI03LGUR48U 21450_ K-01 Serf cleans the Thrusters. 21452_ Dropped Adv. Force Field. 21456_ Knocked back. 21457_ Suspension Chamber breached. 21459_ U-05 Engineer builds a Wall. 21461_ Acquired Alien Artifact. 21462_ Warped through subspace, drawn to slip node. 21471_ Acquired 52 matter. 21484_ Connecting with Scanalyzer... >>Insert(Alien Artifact) Scanning Alien Artifact... ID: Core Membrane >>Insert(Alien Reactor) Scanning Alien Reactor... ID: Matter Drive 21487_ EXIT=FOUND: RESEARCH 21487_ Penetrated by Slug. Map ----- +----------------------------------------------------+ | ??##"## ##### !+|]! "" #" #???????????????? | | ?## #####???# %]#%== ## #???????????????? | | ## ##???????# =############ #???????????????? | | # ##????????# !## *!! [#* #???????????????? | | "##??######## ## *!! !=!#%! #???????????????? | | "#???#"""""!# ## !!! ![[#%!% #???????????????? | | ##???#"""""=#] ## =**=+%%= #???????????????? | | #????#""!"%!+%! ## """ """=#==! #???????????????? | | #????#"" "=*#= ## """ """%#%[ #???????????????? | | #????#" ! %#= ## """ """=# #???????????????? | | ##???#"" # ## # #???????????????? | | "#???#" # ##+######### #???????????????? | | ##???######## # # #???????????????? | | #???????###?# # " " # #???????????????? | | #?########### #! """ """ # #???????????????? | | #?# # # """ """ # #???????????????? | | #?# # + """ """ # #???????????????? | | #?# # # """ """ # #???????????????? | | #?# # # """ """ # #???????????????? | | #?# # # """ """ # #???????????????? | | #?# # # " " # #???????????????? | | #?# # # =%* # ] ^#???????????????? | | #?# + ######### ## #??????????????#? | | ??# # #?########## ########### #? | | ??# + #???# % %* R #? | | #?# "" ########## @ *% = #? | | #?# "" # # #? | | #?# " " # + #? | | #?# """ # = # ###+###################? | | #?# "" # # # """""" #??????????? | | #?# / ?# # ""S""" ##?????????? | | #?########### ?# # """ #?????????? | | #???????????# ??# # """"" ##?????????? | | #???????????# ??# # """"" #??????????? | | #???????????# ???# # """"" #??????????? | | #???????????######???# # ! #??????????? | | #????????????????????# #############??????????? | | #????????????????????# #??????????????????????? | | #????????????????????# #??????????????????????? | | #????????????????????# #??????????????????????? | | #????????????????????# #??????????????????????? | | #????????????????????" ???????????????????????? | | #???????????????????? H ???????????????????????? | | #????????????????????# ???????????????????????? | | #????????????????????# ???????????????????????? | | ?????????????????????#####???????????????????????? | | ?????????????????????????????????????????????????? | | ?????????????????????????????????????????????????? | | ?????????????????????????????????????????????????? | | ?????????????????????????????????????????????????? | +----------------------------------------------------+ Best States ------------- Heat Dissipation 91 Coolant Potential 120 Energy Generation 39 Energy Capacity 1700 Matter Stores 300 Matter Capacity 300 Sight Range 24 Robot Scan Range 18 Terrain Scan Range 24 Terrain Scan Density 2010 ECM Strength 2 Jamming Range 14 Cloak Strength 4 Power Amplification 40 Additional Mass Support 20 Corruption Block 13 Armor Coverage 1200 Resistance: KI 15 Resistance: TH 15 Resistance: EX 15 Resistance: EM 15 Resistance: I 15 Resistance: S 15 Resistance: P 15 Propulsion Shielding 90 Utility Shielding 90 Weapon Shielding 100 Weapon Cycling 25 Melee Speed Boost 20 Phase Shifting 15 Evasion (%) 76 Targeting Accuracy 12 Melee Accuracy 13 Target Analysis 8 Core Analysis 8 Armor Integrity Analysis 50 Recoil Reduction 2 Offensive Hacking 32 Defensive Hacking 69 Authchip Count 1 Item Schematics ----------------- Combat Drone Bay | -7/Data Miner | Free Lgt. Regenerative Plating | -7/Data Miner | Free Biomechanical Wings | -7/Data Miner | Free Thermal Defense Suite | -7/Data Miner | Free Antimatter Cannon | -7/Data Miner | Free Gyrokinetic Inverter | -7/Data Miner | Free Imp. Shock Absorption System | -7/Data Miner | Free Enh. Gauss Cannon | -7/Data Miner | Free Proton Cannon | -7/Data Miner | Free Wave Gun | -7/Data Miner | Free Adv. Trap Extractor | -6/Zion | Archive Adv. Heat Sink | -6/Zion | Archive Imp. Target Analyzer | -6/Zion | Archive Matter Neutralizer | -6/Zion | Archive Imp. Hardlight Generator | -6/Zion | Archive Tesla Rifle | -6/Zion | Archive Lgt. Angular Momentum Engine | -6/Zion | Archive Lrn. Proton Cannon | -6/Zion | Archive Arm. Leg | -6/Zion | Archive Adv. Plasma Cannon | -6/Zion | Archive Imp. Particle Charger | -6/Zion | Archive Lance | -6/Zion | Archive Beamcaster | -6/Zion | Archive Imp. Antigrav System | -6/Zion | Archive Exp. Utility Shielding | -5/Factory | Hacked Exp. Reaction Control System | -5/Factory | Scanalyzed Assault Drone Bay | -5/Zhirov | Free Exp. Heat Sink | -5/Zhirov | Free Imp. Arc Thrower | -5/Zhirov | Free Exp. Optical Array | -5/Zhirov | Free Cmb. Linear Gravjet | -4/Factory | Hacked Exp. Propulsion Shielding | -4/Factory | Hacked Lrn. Sensor Array | -3/Research | Hacked Lrn. Terrain Scanner | -3/Research | Hacked Exp. Signal Interpreter | -3/Research | Hacked Robot Schematics ------------------ H-55 Commando | -7/Data Miner | Free Y-54 Guardian | -7/Data Miner | Free M-14 Sweeper | -7/Data Miner | Free R-10 Processor | -7/Data Miner | Free G-73 Enforcer | -6/Zion | Archive G-50 Soldier | -6/Zion | Archive T-07 Excavator | -6/Zion | Archive Fabricated ------------ Com. HERF Cannon | x1 | -6/Factory | Preloaded Gyrokinetic Inverter | x2 | -5/Factory | Preloaded Exp. Utility Shielding | x1 | -5/Factory Cmb. Linear Gravjet | x2 | -4/Factory Cmb. Linear Gravjet | x2 | -4/Factory Exp. Utility Shielding | x1 | -4/Factory Exp. Propulsion Shielding | x1 | -4/Factory Cmb. Linear Gravjet | x2 | -3/Research | Authchip Lrn. Sensor Array | x1 | -3/Research Alien Tech Used ----------------- Dimensional Node Initializer Integrated Reactor Phase Redirector Sigix Broadsword Transdimensional Reconstructor Core Stripper Core Physics Calibrator Integrated Thermoelectric Network Spacefold Activator Sigix Shearcannon Core Expander LRC Energy Well Achievements -------------- None Challenges ------------ None Game ------ Seed VortexDeepCasing Manual? 0 Play Time 06:45:29 Cumulative 1040.2 hours Start 2022.04.03 @ 18:41:33 End 2022.04.09 @ 18:19:31 Sessions 25 Manual Loads 0 Difficulty Rogue Special Mode None Game No. 311 Rogue 311 Adventurer 0 Explorer 0 Win Type - Total 71 Types 44/4/8/6/4/1/2/1/1 Lore% 95 Gallery% 96 Achievement% 98 Wizard Run 0 Options --------- ASCII 0 Keyboard 1 Movement Arrows Keybinds 0 Fullscreen 1 Font 24/Smallcaps Map View 76x56 Tactical HUD 1 Map Filters NONE Filters NONE Steam 1 RUN: a302100a-8fbd-45fb-9542-28b36bdfa98c